Cogmind - Beta 9.3 @@@ ROGUE MODE // 2019.12.19 @ 03:16:14 // Winter2019/RPGLIKE Player: Rumbl3 Result: Destroyed by Combat Programmer with EMDS Performance ------------- Evolutions (9) 4500 Regions Visited (32) 6400 Robots Destroyed (329) 1645 Value Destroyed (12578) 12578 Prototype IDs (76) 1520 Alien Tech Used (4) 800 Bonus (32515) 32515 TOTAL SCORE: 59958 Bonus ------- High Alert Combat Kills 1376 Follower Combat Kills 2155 Network Hubs Disabled 400 Met Data Miner 300 Met Imprinter 300 Destroyed Z-Imprinter 1000 Triggered Deep Caves Wall 1000 Exposed GOLEM Chamber 10000 Met Warlord at Base 500 MAIN.C Attacked Warlord 500 Warlord Defense Kill 592 Met R17 at Cetus 500 Found Hidden Lab 3000 Used Core Reset Matrix 3000 Met R17 at Research 2000 Met Warlord at Research 2000 Met MAIN.C 5000 Friendly Fire -1108 Cogmind --------- Core Integrity 0/2500 Matter 5/300 Energy 407/1900 System Corruption 16% Temperature Cool (0) Movement Hovering (36) Location -1/Command Parts ------- > --- POWER (2) -------- Assembled Flux Generator > --- PROPULSION (5) --- Improved Linear Gravjet Cooled Antigrav System Cooled Antigrav System Experimental Gyrokinetic Inverter Experimental Gyrokinetic Inverter > --- UTILITY (14) ----- Advanced Power Amplifier Improved Energy Well Assembled Biocell Array Experimental Signal Interpreter Long-range Terrain Scanner Assembled Combat Suite Experimental Targeting Computer Advanced Particle Charger Advanced Reaction Control System Advanced Cloaking Device Assembled Alloy Armor Quantum Router GOLEM Unit > --- WEAPON (3) ------- Assembled Focal Cannon Assembled Focal Cannon Neutron Missile Launcher > --- INVENTORY (7) ---- Experimental Gyrokinetic Inverter Long-range Sensor Array Long-range Terrain Scanner Force Lance Peak State ------------ > --- POWER ------------ Assembled Flux Generator > --- PROPULSION ------- Improved Linear Gravjet Cooled Antigrav System Cooled Antigrav System Experimental Gyrokinetic Inverter Experimental Gyrokinetic Inverter > --- UTILITY ---------- Advanced Power Amplifier Improved Energy Well Assembled Biocell Array Experimental Signal Interpreter Long-range Terrain Scanner Assembled Combat Suite Experimental Targeting Computer Advanced Particle Charger Advanced Reaction Control System Advanced Cloaking Device Assembled Alloy Armor Quantum Router GOLEM Unit > --- WEAPON ----------- Assembled Focal Cannon Assembled Focal Cannon Neutron Missile Launcher > --- INVENTORY -------- Experimental Gyrokinetic Inverter Long-range Sensor Array Long-range Terrain Scanner Transdimensional Reconstructor Core Reset Matrix Force Lance Portable AFG [Rating: 202] Favorites ----------- Power Assembled Flux Generator Engine Heavy Deuterium Engine Power Core Enhanced Nuclear Core Reactor Assembled Flux Generator Propulsion Armored Huge Wheel Treads Heavy Siege Treads Leg Makeshift Leg Wheel Armored Huge Wheel Hover Unit Zionite Glidesys I Utility Advanced Signal Interpreter Device GOLEM Unit Storage Assembled Biocell Array Processor Advanced Signal Interpreter Hackware Quantum Router Protection Assembled Alloy Armor Weapon Assembled Focal Cannon Energy Gun Medium Laser Energy Cannon Assembled Focal Cannon Ballistic Gun Heavy Assault Rifle Launcher Proton Missile Launcher Special Weapon Molecular Deconstructor Impact Weapon Power Maul Slashing Weapon Phasing Sabre Piercing Weapon Force Lance Build | -11 -10 -10 -9 -8 -7 -7 -7 -7 -6 -6 -6 -6 -6 -6 -5 -5 -5 -5 -5 -5 -4 -4 -4 -4 -3 -3 -3 -3 -2 -2 -1 -1 ------- Run | Scr Mat Min Mat Mat Fac Low Low Dat Pro Fac Low Low Zio Dee Pro Fac Ext Cet Arc Hub Fac Upp Upp War Pro Res Arm Lab Res Tes Acc Com Slots Evolved 18 | 3 . . 3 1 1 1 . . 2 . . . . 2 . 1 . 1 . . 1 . . . 1 . . . 1 . . . Power 1 | . . . . . . . . . 1 . . . . . . . . . . . . . . . . . . . . . . . Propulsion 3 | 1 . . 1 1 . . . . . . . . . . . . . . . . . . . . . . . . . . . . Utility 12 | 1 . . 1 . 1 1 . . 1 . . . . 2 . 1 . 1 . . 1 . . . 1 . . . 1 . . . Weapon 2 | 1 . . 1 . . . . . . . . . . . . . . . . . . . . . . . . . . . . . Parts Attached 224 | 6 1 1 5 4 16 4 3 . 2 4 3 4 6 31 3 3 4 2 2 4 18 . 3 11 5 16 8 7 19 7 14 8 Power 9 | . 1 . . 1 4 . . . 1 . . . . 2 . . . . . . . . . . . . . . . . . . Engine 6 | . 1 . . 1 3 . . . 1 . . . . . . . . . . . . . . . . . . . . . . . Core 1 | . . . . . 1 . . . . . . . . . . . . . . . . . . . . . . . . . . . Reactor 2 | . . . . . . . . . . . . . . 2 . . . . . . . . . . . . . . . . . . Propulsion 55 | 3 . 1 1 2 . . . . . . . 2 1 9 . 2 . . . 2 7 . 3 3 . 4 5 1 1 1 7 . Treads 3 | . . . . . . . . . . . . . . . . . . . . . . . 1 . . 1 . . . . 1 . Leg 3 | . . . . . . . . . . . . 2 1 . . . . . . . . . . . . . . . . . . . Wheel 7 | 3 . 1 1 2 . . . . . . . . . . . . . . . . . . . . . . . . . . . . Hover 42 | . . . . . . . . . . . . . . 9 . 2 . . . 2 7 . 2 3 . 3 5 1 1 1 6 . Flight . | . . . . . . . . . . . . . . . . . . . . . . . . . . . . . . . . . Utility 99 | 2 . . 2 . 4 2 2 . 1 1 1 1 3 13 . 1 4 . . 2 8 . . 5 3 5 3 4 16 6 5 5 Device 62 | 2 . . 1 . 1 1 . . 1 . . . 2 4 . . 3 . . 2 6 . . 3 2 5 3 2 10 5 4 5 Storage 9 | . . . . . . . . . . . . . . 4 . . . . . . . . . . . . . . 4 . 1 . Processor 13 | . . . . . 2 1 . . . 1 . . . 1 . 1 . . . . 2 . . 2 1 . . . 1 1 . . Hackware 1 | . . . . . . . . . . . . . . . . . . . . . . . . . . . . 1 . . . . Protection 14 | . . . 1 . 1 . 2 . . . 1 1 1 4 . . 1 . . . . . . . . . . 1 1 . . . Artifact . | . . . . . . . . . . . . . . . . . . . . . . . . . . . . . . . . . Weapon 61 | 1 . . 2 1 8 2 1 . . 3 2 1 2 7 3 . . 2 2 . 3 . . 3 2 7 . 2 2 . 2 3 Energy Gun 3 | 1 . . . . 1 . . . . . . . . 1 . . . . . . . . . . . . . . . . . . Energy Cannon 1 | . . . . . . . . . . . . . . 1 . . . . . . . . . . . . . . . . . . Ballistic Gun 5 | . . . 1 . 2 . . . . . . . 1 1 . . . . . . . . . . . . . . . . . . Ballistic Cannon . | . . . . . . . . . . . . . . . . . . . . . . . . . . . . . . . . . Launcher 25 | . . . . 1 3 . 1 . . 1 1 1 1 3 1 . . 2 1 . . . . 1 1 4 . . . . 1 2 Special Weapon 2 | . . . . . . 1 . . . . . . . . . . . . . . . . . . . . . 1 . . . . Impact Weapon 7 | . . . . . . . . . . 2 1 . . 1 2 . . . . . 1 . . . . . . . . . . . Slashing Weapon 6 | . . . 1 . 2 1 . . . . . . . . . . . . 1 . . . . 1 . . . . . . . . Piercing Weapon 12 | . . . . . . . . . . . . . . . . . . . . . 2 . . 1 1 3 . 1 2 . 1 1 Special Melee Weapon . | . . . . . . . . . . . . . . . . . . . . . . . . . . . . . . . . . Unidentified Prototypes 40 | . . . . . 3 1 . . . . 1 . . 8 . 1 . . . . 2 . . 5 . 2 . 4 7 3 1 2 Parts Lost 15 | . . . . . . . . . . . . 1 . 5 . 1 1 1 . . 5 . . . . . . . 1 . . . Power . | . . . . . . . . . . . . . . . . . . . . . . . . . . . . . . . . . Propulsion 8 | . . . . . . . . . . . . . . 3 . 1 . . . . 4 . . . . . . . . . . . Utility 7 | . . . . . . . . . . . . 1 . 2 . . 1 1 . . 1 . . . . . . . 1 . . . Weapon . | . . . . . . . . . . . . . . . . . . . . . . . . . . . . . . . . . Highest Loss Streak 3 | . . . . . . . . . . . . 1 . 3 . 1 1 1 . . 3 . . . . . . . 1 . . . Average Slot Usage (%) 86 | . 100 100 98 85 82 78 76 76 78 80 79 78 80 83 85 89 88 89 90 90 89 90 89 89 90 89 89 90 90 91 90 91 Engine 4 | . 14 14 11 9 8 7 7 7 10 13 12 12 12 3 . . . . . . . . . . . . . . . . . . Reactor 2 | . . . . . . . . . . . . . . 6 5 5 5 5 5 5 4 4 4 4 4 4 4 4 4 4 4 4 Wheel 6 | . 28 28 26 20 16 15 15 15 13 13 12 12 12 4 . . . . . . . . . . . . . . . . . . Hover 13 | . . . . . . . . . . . . . . 13 27 26 26 25 25 25 22 23 22 22 22 21 21 21 20 20 19 20 Device 20 | . 28 28 23 18 16 15 15 15 17 20 19 12 15 15 22 23 17 19 20 20 22 23 23 19 19 26 27 25 28 29 29 29 Storage 3 | . . . . . . . . . . . . . . 3 5 5 5 5 5 5 4 4 4 4 4 4 4 4 6 8 8 8 Processor 11 | . . . . . 6 11 15 15 13 13 12 12 12 11 11 12 15 15 15 15 14 14 14 17 18 13 13 13 9 8 8 8 Protection 5 | . . . 2 9 7 7 7 7 6 6 6 11 8 6 . . 3 5 5 5 4 4 4 4 4 4 4 4 4 4 4 4 Energy Gun 1 | . 14 14 11 9 8 1 . . . . . . . . . . . . . . . . . . . . . . . . . . Energy Cannon 5 | . . . . . . . . . . . . . . . 8 10 13 13 10 10 9 9 9 9 9 9 9 8 8 8 8 8 Ballistic Gun 1 | . 14 14 11 9 8 7 . . . . . . . 1 . . . . . . . . . . . . . . . . . . Launcher 2 | . . . . 6 4 5 6 7 6 2 2 6 6 3 . . . 1 2 . . . . . 1 . . . . . . . Special Weapon 1 | . . . . . . 1 7 7 6 6 6 6 6 5 2 . . . . . . . . . . . . . . . . . Slashing Weapon 1 | . . . 10 3 3 3 . . . . . . . . . . . . 2 5 3 . . . 1 . . . . . . . Piercing Weapon 1 | . . . . . . . . . . . . . . . . . . . . . . 4 4 2 1 3 4 4 4 4 4 3 Naked Turns . | . . . . . . . . . . . . . . . . . . . . . . . . . . . . . . . . . Heaviest Build 112 | 9 13 13 19 21 30 30 30 30 40 40 40 41 41 71 87 84 94 92 86 84 88 88 88 88 89 97 92 101 104 112 104 112 Greatest Support 130 | 31 31 31 40 66 66 66 66 66 66 66 66 66 66 126 126 126 120 130 130 130 130 99 99 97 97 107 97 97 102 106 118 110 Greatest Overweight (x) 4 | . . . . . . . . . . . . 3 . 4 . . . . . . 1 . 3 1 . 1 1 1 1 1 1 1 Average Overweight (x) . | . . . . . . . . . . . . . . . . . . . . . . . . . . . . . . . . . Largest Inventory Capacity 7 | 2 2 2 3 3 4 4 5 5 6 6 6 6 6 7 7 7 7 7 7 7 7 7 7 7 7 7 7 7 7 7 7 7 Average Capacity 6 | 2 2 2 2 3 3 4 4 5 5 6 6 6 6 6 7 7 7 7 7 7 7 7 7 7 7 7 7 7 7 7 7 7 Most Carried 7 | 2 2 2 3 3 4 4 5 5 6 6 6 6 6 7 7 7 7 7 7 7 7 7 7 7 7 7 7 7 7 7 7 7 Average Carried 5 | . 2 1 2 2 3 3 4 5 5 5 6 6 5 6 6 6 6 6 6 6 6 7 7 6 6 6 6 6 6 6 7 6 Final Capacity 7 | 2 2 2 3 3 4 4 5 5 6 6 6 6 6 7 7 7 7 7 7 7 7 7 7 7 7 7 7 7 7 7 7 7 Final Carried 7 | 2 2 2 3 3 4 4 5 5 6 6 6 6 6 7 6 7 6 6 7 6 7 7 7 7 7 7 7 7 7 7 7 4 Class Distribution -------------------- 25% | Hauler-Golem 18% | Hacker-Ninja 9% | Mutant 7% | Scavenger-Skirmisher 6% | Skirmisher 6% | Scavenger-Assassin 5% | Derelict-Skirmisher 4% | Scavenger-Golem 4% | Hauler-Ninja 3% | Scavenger-Scout Dominant Class ---------------- Mutant | -10/Materials Mutant | -10/Mines Scavenger-Assassin | -9/Materials Scavenger-Skirmisher | -8/Materials Scavenger-Assassin | -7/Factory Scavenger-Assassin | -7/Lower Caves Mutant | -7/Lower Caves Mutant | -7/Data Miner Skirmisher | -6/Proximity Caves Assassin | -6/Factory Assassin | -6/Lower Caves Scavenger-Skirmisher | -6/Lower Caves Derelict-Skirmisher | -6/Zion Scavenger-Scout | -6/Deep Caves Scavenger-Golem | -5/Proximity Caves Hauler-Golem | -5/Factory Hauler-Golem | -5/Extension Hauler-Golem | -5/Cetus Hauler-Golem | -5/Archives Hauler-Golem | -5/Hub_04(d) Hauler-Golem | -4/Factory Hauler-Golem | -4/Upper Caves Hauler-Golem | -4/Upper Caves Hauler-Golem | -4/Warlord Hauler-Mutant | -3/Proximity Caves Hauler-Ninja | -3/Research Hauler-Ninja | -3/Armory Hacker-Ninja | -3/Lab Hacker-Ninja | -2/Research Hacker-Ninja | -2/Testing Hacker-Ninja | -1/Access Hacker-Ninja | -1/Command Resources | -11 -10 -10 -9 -8 -7 -7 -7 -7 -6 -6 -6 -6 -6 -6 -5 -5 -5 -5 -5 -5 -4 -4 -4 -4 -3 -3 -3 -3 -2 -2 -1 -1 ----------- Run | Scr Mat Min Mat Mat Fac Low Low Dat Pro Fac Low Low Zio Dee Pro Fac Ext Cet Arc Hub Fac Upp Upp War Pro Res Arm Lab Res Tes Acc Com Matter Collected 4245 | 301 16 48 211 132 241 203 164 . 205 50 15 150 50 443 93 95 75 116 40 57 169 26 79 126 134 201 123 . 319 93 100 170 Remotely . | . . . . . . . . . . . . . . . . . . . . . . . . . . . . . . . . . Salvage Created 12761 | 154 42 48 689 149 361 181 101 . 574 278 136 203 . 541 93 241 455 866 677 1255 777 86 861 441 253 553 249 . 858 683 845 111 Parts 677 | 9 4 16 38 8 34 13 12 . 22 5 4 12 . 24 8 3 43 40 36 65 48 4 24 16 10 25 16 . 43 36 33 26 Haulers Intercepted 12 | . . . . . 1 . . . . . . . . . . 2 . . . 1 1 . . . . . . . 2 1 4 . Recyclers Shooed 5 | 1 . . 2 1 . . . . . . . . . . . . . . . 1 . . . . . . . . . . . . Parts Field Recycled . | . . . . . . . . . . . . . . . . . . . . . . . . . . . . . . . . . Retrieved Matter . | . . . . . . . . . . . . . . . . . . . . . . . . . . . . . . . . . Parts Self-Destructed 183 | . . . . . . 8 11 . 34 . 3 7 . . 12 . . . . . . 4 23 72 9 . . . . . . . Prevented 9 | . . . . . . . . . . . . 4 . . 3 . . . . . . . . 1 1 . . . . . . . Kills | -11 -10 -10 -9 -8 -7 -7 -7 -7 -6 -6 -6 -6 -6 -6 -5 -5 -5 -5 -5 -5 -4 -4 -4 -4 -3 -3 -3 -3 -2 -2 -1 -1 ------- Run | Scr Mat Min Mat Mat Fac Low Low Dat Pro Fac Low Low Zio Dee Pro Fac Ext Cet Arc Hub Fac Upp Upp War Pro Res Arm Lab Res Tes Acc Com Combat Hostiles Destroyed 232 | . . 8 13 4 16 7 5 . 10 1 4 5 . 38 2 . 12 17 3 13 17 2 8 6 7 2 4 . 11 6 3 8 Melee 6 | . . . . . . . . . . . . . . . . . . . . 2 1 . . . 1 . 2 . . . . . Guns 26 | . . 8 13 2 1 1 . . . . . . . 1 . . . . . . . . . . . . . . . . . . Cannons 88 | . . . . . . . . . . . . . . . 1 . 12 7 3 6 15 2 8 6 2 2 2 . 11 6 3 2 AOE 90 | . . . . 2 15 6 3 . 4 . 4 1 . 34 . . . 7 . 3 1 . . . 4 . . . . . . 6 Classes Destroyed 26 | 2 1 2 5 1 2 1 . . 3 . . . . 2 . . 1 . . 1 . . . 2 . . . . 2 . 1 . Worker 22 | . 1 . . . 3 . . . . 1 . . . . . 2 . . . 8 . . . . . 3 . . 2 . 1 1 Builder 6 | . . . . 1 . . . . . . . . . . . . . . . 2 2 . . . . 1 . . . . . . Tunneler 5 | 3 1 . . . . . . . . . . . . . . . . . . 1 . . . . . . . . . . . . Hauler 12 | . . . . . 1 . . . . . . . . . . 2 . . . 1 1 . . . . . . . 2 1 4 . Recycler 7 | 1 . . 2 . 1 . . . . 1 . . . . . . . . . 1 1 . . . . . . . . . . . Carrier 1 | . . . . . . . . . . . . . . . . . . . . 1 . . . . . . . . . . . . Mechanic 1 | . . . . . 1 . . . . . . . . . . . . . . . . . . . . . . . . . . . Operator 16 | . . . 1 1 2 . . . . . . . . . . . 1 . 8 2 . . . . . . . . . . . 1 Drone 1 | . . . . . . . . . . . . . . . . . . . . . . . . . . . . . . . 1 . Watcher 22 | . . . 1 . 1 . . . . . . . . . . . 1 1 . 2 . . . . . 4 1 . 2 1 6 2 Swarmer 58 | . . 6 4 . 16 3 3 . . . 4 . . . . . 1 8 . . 5 . . 1 . . . . . . . 7 Saboteur 3 | . . . . . . . . . . . . . . . . . . . . . . . . 1 . . 2 . . . . . Grunt 50 | . . . 3 3 . 4 2 . 3 . . 2 . . . . 6 3 . 6 . . 4 3 6 . . . 3 1 . 1 Brawler 4 | . . . . . . . . . 3 . . . . . . . . . . 1 . . . . . . . . . . . . Duelist 7 | . . . 2 . . . . . 1 . . 1 . . . . . 1 . . . . 1 . 1 . . . . . . . Protector 1 | . . . . . . . . . . . . . . . . . . . . . . . . 1 . . . . . . . . Sentry 29 | . . . 4 1 . . . . 1 1 . 1 . . . . 2 . 3 3 8 1 1 . . 2 . . . . 1 . Demolisher 2 | . . . . . . . . . . . . . . . . . . . . . . . . . . . . . 2 . . . Hunter 9 | . . . . . . . . . . . . . . . . . 3 . . . . . . . . . 2 . 2 2 . . Programmer 20 | . . . . . . . . . 1 . . 1 . . 2 . . . . 3 4 1 2 . . . . . 2 3 1 . Behemoth 1 | . . . . . . . . . 1 . . . . . . . . . . . . . . . . . . . . . . . Cetus Guard 5 | . . . . . . . . . . . . . . . . . . 5 . . . . . . . . . . . . . . Striker 2 | . . . . . . . . . . . . . . . . . . . . . . . . . . . . . 2 . . . Z-Technician 1 | . . . . . . . . . . . . . . 1 . . . . . . . . . . . . . . . . . . Z-Light 6 | . . . . . . . . . . . . . . 6 . . . . . . . . . . . . . . . . . . Packrat 1 | . . . . . . . . . . . . . . . . . . . . . . . . . 1 . . . . . . . Tinkerer 1 | . . . . . . 1 . . . . . . . . . . . . . . . . . . . . . . . . . . Assembled 33 | . . 2 . . . . . . . . . . . 31 . . . . . . . . . . . . . . . . . . Golem 1 | . . . . . . . . . . . . . . 1 . . . . . . . . . . . . . . . . . . Butcher 1 | . . . . . . . . . . . . . . . . . 1 . . . . . . . . . . . . . . . Bouncer 1 | . . . . . . . . . . . . . . . . . . . . . . . . 1 . . . . . . . . Best Kill Streak 29 | 3 3 4 4 3 6 4 3 . 4 2 4 3 . 29 2 2 5 8 7 10 6 1 3 3 6 3 3 . 3 3 3 8 Combat Bots Only 29 | . . 4 3 2 4 4 3 . 4 1 4 4 . 29 2 . 5 8 2 5 6 1 3 3 6 1 2 . 3 3 2 7 Max Kills in Single Turn 10 | 1 1 1 2 2 3 3 3 . 2 1 4 1 . 10 1 1 2 4 1 7 2 1 1 1 2 2 1 . 1 1 1 5 Gunslinging 1 | . . . 1 . . . . . . . . . . . . . . . . . . . . . . . . . . . . . Exploded 10 | . . . . 2 3 3 3 . 2 . 4 1 . 10 . . . 3 . 3 1 . . . 2 . . . . . . 5 Melee 1 | . . . . . . . . . . . . . . . . . . . . 1 1 . . . 1 . 1 . . . . . Uniques/NPCs Destroyed 1 | . . . . . . . . . . . . . . 1 . . . . . . . . . . . . . . . . . . Z-Imprinter (-6/Deep Caves) Combat | -11 -10 -10 -9 -8 -7 -7 -7 -7 -6 -6 -6 -6 -6 -6 -5 -5 -5 -5 -5 -5 -4 -4 -4 -4 -3 -3 -3 -3 -2 -2 -1 -1 -------- Run | Scr Mat Min Mat Mat Fac Low Low Dat Pro Fac Low Low Zio Dee Pro Fac Ext Cet Arc Hub Fac Upp Upp War Pro Res Arm Lab Res Tes Acc Com Damage Taken 16682 | . . 177 498 268 342 333 42 . 952 159 28 526 . 1875 59 385 386 1257 206 867 2345 69 209 178 294 236 481 . 813 233 147 3317 Core 12740 | . . 141 409 208 281 265 32 . 752 124 21 413 . 1214 51 319 259 700 172 700 1883 54 173 138 239 190 381 . 653 185 114 2669 Absorbed by Shields . | . . . . . . . . . . . . . . . . . . . . . . . . . . . . . . . . . Redirected to Core 10940 | . . 116 301 208 213 237 32 . 712 97 21 395 . 1001 31 253 198 524 124 566 1645 54 126 138 194 167 360 . 584 165 114 2364 Core Remaining (%) 86 | 100 . 100 100 91 . . . . 33 . . . . . 100 . . . . 80 . . . . 100 . . 74 . 86 . . Volleys Fired 612 | 17 3 13 49 23 23 7 3 . 25 2 1 10 . 41 7 14 31 42 18 34 58 5 19 16 18 18 9 . 40 15 27 24 Largest 3 | 2 2 2 2 3 3 2 1 . 2 1 1 2 . 2 2 2 3 3 2 2 2 2 2 2 3 2 2 . 2 2 2 3 Hottest 131 | 70 70 70 73 106 131 62 39 . 39 . 39 39 . 69 25 50 75 89 50 50 50 50 50 50 89 50 50 . 50 50 50 99 Shots Fired 1096 | 34 6 26 94 40 44 10 3 . 28 2 1 17 . 52 9 28 76 73 31 62 106 11 37 27 26 35 15 . 78 30 51 44 Gun 238 | 34 6 26 94 37 29 3 . . . . . . . 9 . . . . . . . . . . . . . . . . . . Cannon 702 | . . . . . . . . . . . . . . 2 7 28 76 63 29 62 106 11 37 27 14 35 15 . 78 30 51 31 Launcher 104 | . . . . 3 15 7 1 . 5 . 1 9 . 26 . . . 10 2 . . . . . 12 . . . . . . 13 Special 52 | . . . . . . . 2 . 23 2 . 8 . 15 2 . . . . . . . . . . . . . . . . . Kinetic 132 | 17 3 13 49 23 15 3 . . . . . . . 9 . . . . . . . . . . . . . . . . . . Thermal 806 | 17 3 13 45 14 14 . . . . . . . . . 7 28 76 63 29 62 106 11 37 27 14 35 15 . 78 30 51 31 Explosive 64 | . . . . 3 15 7 1 . 5 . . . . 5 . . . 3 . . . . . . 12 . . . . . . 13 Electromagnetic 42 | . . . . . . . . . . . 1 9 . 23 . . . 7 2 . . . . . . . . . . . . . Robot Hit Streak 37 | 8 4 4 17 15 11 7 4 . 8 4 5 20 . 7 2 12 26 27 18 17 36 15 37 11 13 16 10 . 18 18 12 25 Robot Miss Streak 4 | 3 1 2 4 1 3 1 . . 1 . . . . 2 1 1 2 2 1 1 1 . 2 2 1 3 2 . 1 1 2 2 Penetration Max . | . . . . . . . . . . . . . . . . . . . . . . . . . . . . . . . . . Secondary Targets 3 | . . 1 2 . . . . . . . . . . . . . . . . . . . . . . . . . . . . . Max Gunslinging Chain 1 | . . 1 1 . . . . . . . . . . . . . . . . . . . . . . . . . . . . . Shots Hit Robots 864 | 17 4 12 67 33 28 8 2 . 20 4 1 15 . 31 5 16 49 55 36 64 100 12 31 20 19 33 11 . 69 23 43 36 Core Hits 549 | 5 2 10 31 16 32 10 3 . 12 . 4 4 . 91 1 3 25 34 18 49 32 5 15 11 21 16 9 . 28 15 20 27 Critical Hits 5 | . . . . . 1 . . . . . . . . . . . . . . 2 1 . . . . . . . 1 . . . Critical Kills 2 | . . . . . . . . . . . . . . . . . . . . 2 . . . . . . . . . . . . Critical Parts Destroyed 3 | . . . . . 1 . . . . . . . . . . . . . . . 1 . . . . . . . 1 . . . Melee Attacks 334 | . . . 3 . 19 9 . . . 7 1 . . 2 4 16 . . 12 39 44 2 3 2 4 34 27 3 19 22 50 12 Impact 30 | . . . . . . . . . . 7 1 . . 2 4 16 . . . . . . . . . . . . . . . . Slashing 120 | . . . 3 . 19 9 . . . . . . . . . . . . 12 39 36 . . . 2 . . . . . . . Piercing 184 | . . . . . . . . . . . . . . . . . . . . . 8 2 3 2 2 34 27 3 19 22 50 12 Sneak Attacks 38 | . . . . . 3 . . . . 2 . . . . . 3 . . 6 8 2 . . . . 4 . . 4 1 3 2 Combat Hostiles . | . . . . . . . . . . . . . . . . . . . . . . . . . . . . . . . . . Follow-up Attacks . | . . . . . . . . . . . . . . . . . . . . . . . . . . . . . . . . . Damage Inflicted 49529 | 213 36 207 855 865 2291 812 169 . 816 235 172 221 . 3513 301 803 2576 3497 2602 5464 5251 805 1866 1027 1410 2005 528 . 4052 1480 2269 3188 Guns 2135 | 213 36 207 855 411 284 46 . . . . . . . 83 . . . . . . . . . . . . . . . . . . Cannons 27575 | . . . . . . . . . . . . . . 41 63 555 2576 2616 1168 2733 4626 513 1488 1027 610 1476 477 . 3497 1190 1791 1128 Explosions 12523 | . . . . 454 1675 766 169 . 816 . 172 221 . 3291 . . . 881 122 1410 120 . . . 752 . . . . . . 1674 Melee 7296 | . . . . . 332 . . . . 235 . . . 98 238 248 . . 1312 1321 505 292 378 . 48 529 51 . 555 290 478 386 Ramming . | . . . . . . . . . . . . . . . . . . . . . . . . . . . . . . . . . Kinetic 1119 | 87 12 85 395 273 138 46 . . . . . . . 83 . . . . . . . . . . . . . . . . . . Thermal 29024 | 126 24 122 460 138 146 . . . . . 131 . . 223 63 555 2576 2616 1168 2733 4746 513 1488 1027 610 1476 477 . 3497 1190 1791 1128 Explosive 9135 | . . . . 454 1675 766 169 . 816 . . . . 2341 . . . 488 . . . . . . 752 . . . . . . 1674 Electromagnetic 2955 | . . . . . . . . . . . 41 221 . 768 . . . 393 122 1410 . . . . . . . . . . . . Impact 819 | . . . . . . . . . . 235 . . . 98 238 248 . . . . . . . . . . . . . . . . Slashing 3113 | . . . . . 332 . . . . . . . . . . . . . 1312 1321 148 . . . . . . . . . . . Piercing 3364 | . . . . . . . . . . . . . . . . . . . . . 357 292 378 . 48 529 51 . 555 290 478 386 Highest Corruption 16 | . . . . . . . . . 2 . . 1 1 . . 3 3 3 3 4 14 14 14 14 . . 6 6 3 4 1 16 Average Corruption 4 | . . . . . . . . . 1 . . 1 1 . . 3 3 3 3 3 7 14 14 14 . . 4 6 3 3 1 1 Corruption Purged . | . . . . . . . . . . . . . . . . . . . . . . . . . . . . . . . . . Effects 157 | . . . . . . . . . 3 . . . 1 . . . 7 12 5 21 22 18 31 1 . . . 5 15 10 . 6 Message Errors 26 | . . . . . . . . . . . . . . . . . 1 6 1 3 3 . 3 . . . . 3 5 . . 1 Matter Fused 29 | . . . . . . . . . . . . . . . . . 2 2 1 2 2 4 7 1 . . . . 5 3 . . Heat Flow Errors 22 | . . . . . . . . . 1 . . . . . . . . 1 . 5 2 2 7 . . . . . 1 3 . . Energy Discharges 16 | . . . . . . . . . 2 . . . 1 . . . 3 . . 2 3 . . . . . . 1 2 2 . . Parts Rejected 1 | . . . . . . . . . . . . . . . . . . . . . 1 . . . . . . . . . . . Data Loss (minor) 11 | . . . . . . . . . . . . . . . . . . . 1 1 2 1 1 . . . . 1 2 1 . 1 Data Loss (major) 1 | . . . . . . . . . . . . . . . . . . . . . . 1 . . . . . . . . . . Misfires 3 | . . . . . . . . . . . . . . . . . . . . . . 1 2 . . . . . . . . . Alerts 1 | . . . . . . . . . . . . . . . . . . . . . . 1 . . . . . . . . . . Misdirections 14 | . . . . . . . . . . . . . . . . . . . . . 4 4 6 . . . . . . . . . Targeting Errors 26 | . . . . . . . . . . . . . . . . . 1 2 2 4 5 4 4 . . . . . . 1 . 3 Weapon Failures 7 | . . . . . . . . . . . . . . . . . . 1 . 4 . . 1 . . . . . . . . 1 Overload Shots . | . . . . . . . . . . . . . . . . . . . . . . . . . . . . . . . . . Overflow Damage 3916 | . . . . 9 247 89 1 . 6 125 . . . 184 223 102 137 216 382 619 304 41 236 72 22 397 49 . 258 100 86 11 Projectiles 1747 | . . . . . . . . . . . . . . . . 24 137 182 47 246 164 41 126 72 22 208 49 . 258 85 86 . Explosions 511 | . . . . 9 109 89 1 . 6 . . . . 108 . . . 34 . 133 11 . . . . . . . . . . 11 Melee 1658 | . . . . . 138 . . . . 125 . . . 76 223 78 . . 335 240 129 . 110 . . 189 . . . 15 . . Knockbacks 5 | . . . . . . . . . . 2 . . . . 1 2 . . . . . . . . . . . . . . . . Impact 5 | . . . . . . . . . . 2 . . . . 1 2 . . . . . . . . . . . . . . . . Kinetic . | . . . . . . . . . . . . . . . . . . . . . . . . . . . . . . . . . Secondary . | . . . . . . . . . . . . . . . . . . . . . . . . . . . . . . . . . Self-Inflicted Damage 422 | . . . . . 81 74 . . 62 . . . . 93 . . . . . 33 74 . . . 5 . . . . . . . Shots 11 | . . . . . 2 1 . . 1 . . . . 2 . . . . . 2 2 . . . 1 . . . . . . . Rammed . | . . . . . . . . . . . . . . . . . . . . . . . . . . . . . . . . . Targets Rammed . | . . . . . . . . . . . . . . . . . . . . . . . . . . . . . . . . . Kicked . | . . . . . . . . . . . . . . . . . . . . . . . . . . . . . . . . . Crushed . | . . . . . . . . . . . . . . . . . . . . . . . . . . . . . . . . . Highest Temperature 267 | . . . 11 89 192 . . . 138 . . . . 96 . . . 55 . 212 209 193 267 . 11 . . . 144 225 . . Average Temperature 59 | . . . 4 27 68 . . . 72 . . . . 22 . . . 55 . 78 103 98 124 . 6 . . . 85 93 . . Received Heat Transfer 2178 | . . . 159 135 . 21 27 . 174 48 . 186 . 396 . . 54 162 18 273 186 9 12 36 72 57 18 . . . 9 126 Effects 3 | . . . . . . . . . . . . . . . . . . . . . . . 3 . . . . . . . . . Energy Bleed 3 | . . . . . . . . . . . . . . . . . . . . . . . 3 . . . . . . . . . Siege Activations . | . . . . . . . . . . . . . . . . . . . . . . . . . . . . . . . . . Robots Corrupted 7 | . . . . . . . . . . . . . . 2 . . . 3 . 2 . . . . . . . . . . . . Combat Hostiles 6 | . . . . . . . . . . . . . . 2 . . . 3 . 1 . . . . . . . . . . . . Parts Fried 24 | . . . . . . . . . . 3 . . . 11 . 1 . 2 3 4 . . . . . . . . . . . . Impact Corruptions 20 | . . . . . . . . . . 5 . . . 2 10 3 . . . . . . . . . . . . . . . . Robots Melted 1 | . . . . . . . . . . . . . . . . . . . . 1 . . . . . . . . . . . . Combat Hostiles 1 | . . . . . . . . . . . . . . . . . . . . 1 . . . . . . . . . . . . Parts Melted 22 | 1 . . 4 2 . . . . . . . . . . . 1 . . . 2 9 1 . . . 1 . . . 1 . . Heat Transferred 16613 | 370 74 370 1369 407 370 . . . . . 150 . . 100 25 300 1259 1350 600 1300 2375 250 725 511 325 700 250 . 1650 550 850 383 Parts Sabotaged 2 | . . . . . . . . . . . . . . . . . . . . . . . . . . . 2 . . . . . Parts Stolen . | . . . . . . . . . . . . . . . . . . . . . . . . . . . . . . . . . Parts Stripped . | . . . . . . . . . . . . . . . . . . . . . . . . . . . . . . . . . Power Chain Reactions 4 | . . . . . . . . . . . 1 . . 3 . . . . . . . . . . . . . . . . . . Missiles Intercepted . | . . . . . . . . . . . . . . . . . . . . . . . . . . . . . . . . . Alert | -11 -10 -10 -9 -8 -7 -7 -7 -7 -6 -6 -6 -6 -6 -6 -5 -5 -5 -5 -5 -5 -4 -4 -4 -4 -3 -3 -3 -3 -2 -2 -1 -1 ------- Run | Scr Mat Min Mat Mat Fac Low Low Dat Pro Fac Low Low Zio Dee Pro Fac Ext Cet Arc Hub Fac Upp Upp War Pro Res Arm Lab Res Tes Acc Com Peak Influence 1190 | 20 54 176 489 229 320 . . . . 235 . . . . . 135 571 1190 507 1108 1113 . . . . 272 391 . 249 495 455 616 Average Influence 314 | 8 40 136 280 134 199 . . . . 209 . . . . . 100 316 789 466 311 858 . . . . 142 217 . 105 306 287 374 Maximum Alert Level 4 | . . . 2 1 1 . . . . 1 . . . . . . 2 4 2 4 4 . . . . 1 1 . 1 2 2 2 Low Security (%) 45 | 100 100 100 34 81 54 . . . . 52 . . . . . 100 21 . . 47 . . . . . 77 52 . 93 7 25 12 Level 1 30 | . . . 43 18 45 . . . . 47 . . . . . . 47 16 1 38 . . . . . 22 47 . 6 81 54 38 Level 2 12 | . . . 22 . . . . . . . . . . . . . 31 9 98 . 20 . . . . . . . . 10 20 49 Level 3 11 | . . . . . . . . . . . . . . . . . . 67 . 11 75 . . . . . . . . . . . Level 4 . | . . . . . . . . . . . . . . . . . . 6 . 2 4 . . . . . . . . . . . Level 5 . | . . . . . . . . . . . . . . . . . . . . . . . . . . . . . . . . . High Security . | . . . . . . . . . . . . . . . . . . . . . . . . . . . . . . . . . Max Security . | . . . . . . . . . . . . . . . . . . . . . . . . . . . . . . . . . Squads Dispatched 44 | . 1 . 2 1 1 . . . 1 . . . . . . 3 4 2 . 7 5 . . . . 6 . . . 4 5 2 Investigation 11 | . . . . . . . . . . . . . . . . 2 1 2 . . . . . . . 3 . . . 1 2 . Extermination 6 | . . . . . . . . . . . . . . . . . . . . 2 2 . . . . . . . . 1 . 1 Reinforcement 19 | . 1 . 2 1 1 . . . . . . . . . . . 2 . . 2 2 . . . . 3 . . . 2 2 1 Assault 3 | . . . . . . . . . 1 . . . . . . . 1 . . . 1 . . . . . . . . . . . Garrison 5 | . . . . . . . . . . . . . . . . 1 . . . 3 . . . . . . . . . . 1 . Intercept . | . . . . . . . . . . . . . . . . . . . . . . . . . . . . . . . . . Construction Impeded 4 | . . . . . . . . . . . . . . . . . . . . 1 1 . . . . 1 . . . . 1 . Haulers Reinforced 3 | . . . . . . . . . . . . . . . . . . . . . . . . . . 1 . . . 1 1 . Stealth | -11 -10 -10 -9 -8 -7 -7 -7 -7 -6 -6 -6 -6 -6 -6 -5 -5 -5 -5 -5 -5 -4 -4 -4 -4 -3 -3 -3 -3 -2 -2 -1 -1 --------- Run | Scr Mat Min Mat Mat Fac Low Low Dat Pro Fac Low Low Zio Dee Pro Fac Ext Cet Arc Hub Fac Upp Upp War Pro Res Arm Lab Res Tes Acc Com Distress Signals 26 | . . . . . 1 . . . . . . . . . . . 1 2 . 1 1 . . . . 4 2 . 7 . 3 4 Communications Jammed . | . . . . . . . . . . . . . . . . . . . . . . . . . . . . . . . . . Distress Signals . | . . . . . . . . . . . . . . . . . . . . . . . . . . . . . . . . . Times Spotted 623 | . 1 11 19 8 20 9 2 . 19 1 4 7 . 74 4 1 36 35 15 42 37 2 8 14 8 24 34 . 36 12 17 123 Peak Tracking Total 110 | . 2 3 4 3 5 4 1 . 10 1 4 4 . 38 2 . 12 13 1 15 9 1 3 5 5 7 24 . 7 4 5 110 Tactical Retreats 61 | . . 2 1 1 . 2 . . 2 . . 1 . 4 . . 4 1 . 9 5 . . . 1 2 3 . 5 1 6 11 Traps | -11 -10 -10 -9 -8 -7 -7 -7 -7 -6 -6 -6 -6 -6 -6 -5 -5 -5 -5 -5 -5 -4 -4 -4 -4 -3 -3 -3 -3 -2 -2 -1 -1 ------- Run | Scr Mat Min Mat Mat Fac Low Low Dat Pro Fac Low Low Zio Dee Pro Fac Ext Cet Arc Hub Fac Upp Upp War Pro Res Arm Lab Res Tes Acc Com Traps Triggered 4 | . . . . . . . . . . . . . . . . . 2 . . . . . . . . . . . . . 2 . Indirectly . | . . . . . . . . . . . . . . . . . . . . . . . . . . . . . . . . . Trap Hack Attempts . | . . . . . . . . . . . . . . . . . . . . . . . . . . . . . . . . . Triggered . | . . . . . . . . . . . . . . . . . . . . . . . . . . . . . . . . . Disarmed 5 | . . . . . . . . . . . . . . . . . . . . . . . . . . . . . . . . 5 Reprogrammed . | . . . . . . . . . . . . . . . . . . . . . . . . . . . . . . . . . Reused . | . . . . . . . . . . . . . . . . . . . . . . . . . . . . . . . . . Traps Extracted . | . . . . . . . . . . . . . . . . . . . . . . . . . . . . . . . . . Installed . | . . . . . . . . . . . . . . . . . . . . . . . . . . . . . . . . . Triggered 12 | . . . . . . . . . . . 1 . . . 2 . . . . 1 . . . 5 3 . . . . . . . Machines | -11 -10 -10 -9 -8 -7 -7 -7 -7 -6 -6 -6 -6 -6 -6 -5 -5 -5 -5 -5 -5 -4 -4 -4 -4 -3 -3 -3 -3 -2 -2 -1 -1 ---------- Run | Scr Mat Min Mat Mat Fac Low Low Dat Pro Fac Low Low Zio Dee Pro Fac Ext Cet Arc Hub Fac Upp Upp War Pro Res Arm Lab Res Tes Acc Com Machines Disabled 54 | . . . . 2 1 2 . . . . . . . 5 . . 4 2 4 16 5 . . . . 1 4 1 1 4 1 1 Max in Single Turn 12 | . . . . 1 1 2 . . . . . . . 1 . . 1 1 2 12 5 . . . . 1 1 1 1 1 1 1 Garrison Access 8 | . . . . . . . . . . . . . . . . 1 . . . . 1 . . . . . . . 3 1 2 . Network Hub 2 | . . . . . . . . . . . . . . . . . . . . 2 . . . . . . . . . . . . Energy Cycler 1 | . . . . . . . . . . . . . . . . . . . . . . . . . . . 1 . . . . . Machines Sabotaged . | . . . . . . . . . . . . . . . . . . . . . . . . . . . . . . . . . Garrisons Compromised . | . . . . . . . . . . . . . . . . . . . . . . . . . . . . . . . . . Overloaded Fab Kills . | . . . . . . . . . . . . . . . . . . . . . . . . . . . . . . . . . Fab Network Shutdowns . | . . . . . . . . . . . . . . . . . . . . . . . . . . . . . . . . . Hacking | -11 -10 -10 -9 -8 -7 -7 -7 -7 -6 -6 -6 -6 -6 -6 -5 -5 -5 -5 -5 -5 -4 -4 -4 -4 -3 -3 -3 -3 -2 -2 -1 -1 --------- Run | Scr Mat Min Mat Mat Fac Low Low Dat Pro Fac Low Low Zio Dee Pro Fac Ext Cet Arc Hub Fac Upp Upp War Pro Res Arm Lab Res Tes Acc Com Machines Accessed 103 | . 1 . 4 2 4 . 1 4 . . 1 . . . . 8 12 3 1 8 5 . . 7 . 9 4 2 6 6 9 6 Terminals 65 | . 1 . 4 2 2 . . . . . . . . . . 5 12 3 . 8 4 . . . . 4 2 . 3 4 5 6 Fabricators 5 | . . . . . . . . . . . . . . . . . . . . . . . . . . 1 1 . . 1 2 . Repair Stations . | . . . . . . . . . . . . . . . . . . . . . . . . . . . . . . . . . Recycling Units 6 | . . . . . 2 . . . . . . . . . . . . . . . . . . . . 2 1 . 1 . . . Scanalyzers 3 | . . . . . . . . . . . . . . . . 1 . . . . . . . . . 1 . . 1 . . . Garrison Access 8 | . . . . . . . . . . . . . . . . 2 . . . . 1 . . . . 1 . . 1 1 2 . Total Hacks 442 | . 2 . 11 5 12 . 1 26 . . 7 . . . . 22 37 14 25 17 14 . . 9 . 45 23 20 49 33 33 37 Successful 250 | . 1 . 7 3 7 . 1 26 . . 7 . . . . 10 24 7 25 7 6 . . 9 . 20 12 20 17 14 13 14 Failed 189 | . 1 . 4 2 5 . . . . . . . . . . 12 12 6 . 10 8 . . . . 25 11 . 32 19 19 23 Catastrophic 55 | . . . 1 1 . . . . . . . . . . . 2 . 3 . 2 2 . . . . 7 3 . 13 7 6 8 Database Lockouts 6 | . . . . . . . . . . . . . . . . . 2 1 . . . . . . . . . . . . 3 . Manual 212 | . 2 . 8 1 5 1 . . . . . . 4 . . 13 36 12 1 14 9 . . 1 . 22 9 2 26 14 13 19 Terminals 273 | . 2 . 11 5 10 . . . . . . . . . . 14 37 14 . 17 13 . . . . 24 18 . 30 24 17 37 Fabricators 22 | . . . . . . . . . . . . . . . . . . . . . . . . . . 4 3 . . 8 7 . Repair Stations . | . . . . . . . . . . . . . . . . . . . . . . . . . . . . . . . . . Recycling Units 15 | . . . . . 2 . . . . . . . . . . . . . . . . . . . . 3 2 . 8 . . . Scanalyzers 19 | . . . . . . . . . . . . . . . . 2 . . . . . . . . . 9 . . 8 . . . Garrison Access 25 | . . . . . . . . . . . . . . . . 6 . . . . 1 . . . . 5 . . 3 1 9 . Terminal Hacks 152 | . . . 2 3 3 . 1 26 . . 7 . . . . 3 10 3 25 3 3 . . 9 . 5 7 20 5 4 5 8 Record 72 | . . . . . . . . 11 . . 7 . . . . . . 1 25 . . . . 7 . . 1 20 . . . . Part Schematic 8 | . . . . . . . . 7 . . . . . . . . . . . . . . . . . . . . . 1 . . Robot Schematic 5 | . . . . . . . . 5 . . . . . . . . . . . . . . . . . . . . . . . . Robot Analysis 8 | . . . . . . . . . . . . . . . . 2 4 1 . . . . . . . . 1 . . . . . Prototype ID Bank 11 | . . . . . . . . 3 . . . . . . . . 1 . . . . . . . . 1 1 . 2 . 1 2 Open Door 5 | . . . . . . . 1 . . . . . . . . . . 1 . . . . . 2 . . . . . . . 1 Level Access Points 1 | . . . . 1 . . . . . . . . . . . . . . . . . . . . . . . . . . . . Branch Access Points 7 | . . . . 1 1 . . . . . . . . . . . 1 . . . 1 . . . . . . . 1 1 1 . Emergency Access Points 2 | . . . . . . . . . . . . . . . . . . . . . . . . . . . 1 . 1 . . . Machine Index 2 | . . . . . . . . . . . . . . . . . . . . . . . . . . . . . . 1 . 1 Terminal Index 4 | . . . . . . . . . . . . . . . . . . . . . 1 . . . . 1 . . 1 . . 1 Garrison Index 2 | . . . . . . . . . . . . . . . . . . . . . . . . . . . . . . 1 1 . Alert Level 9 | . . . 1 . 1 . . . . . . . . . . 1 2 . . 1 . . . . . 1 1 . . . . 1 Unreport Threat 9 | . . . 1 1 1 . . . . . . . . . . . 1 . . 1 . . . . . 2 . . . . 2 . Locate Traps 5 | . . . . . . . . . . . . . . . . . 1 . . 1 1 . . . . . 2 . . . . . Disarm Traps 1 | . . . . . . . . . . . . . . . . . . . . . . . . . . . . . . . . 1 Disengage Seal 1 | . . . . . . . . . . . . . . . . . . . . . . . . . . . . . . . . 1 Fabricator Hacks 11 | . . . . . . . . . . . . . . . . . . . . . . . . . . 1 2 . . 4 4 . Load Schematic 5 | . . . . . . . . . . . . . . . . . . . . . . . . . . 1 1 . . 1 2 . Build 6 | . . . . . . . . . . . . . . . . . . . . . . . . . . . 1 . . 3 2 . Repair Station Hacks . | . . . . . . . . . . . . . . . . . . . . . . . . . . . . . . . . . Recycling Unit Hacks 4 | . . . . . 1 . . . . . . . . . . . . . . . . . . . . 1 1 . 1 . . . Report Inventory 4 | . . . . . 1 . . . . . . . . . . . . . . . . . . . . 1 1 . 1 . . . Scanalyzer 17 | . . . . . . . . . . . . . . . . 2 . . . . . . . . . 8 . . 7 . . . Insert Component 7 | . . . . . . . . . . . . . . . . 1 . . . . . . . . . 4 . . 2 . . . Analyze 10 | . . . . . . . . . . . . . . . . 1 . . . . . . . . . 4 . . 5 . . . Garrison Access Hacks 6 | . . . . . . . . . . . . . . . . 1 . . . . 1 . . . . . . . 1 1 2 . Seal Access 6 | . . . . . . . . . . . . . . . . 1 . . . . 1 . . . . . . . 1 1 2 . Unauthorized Hacks 162 | . 3 . 13 1 8 . . . . . . . . . . 9 34 11 . 18 5 . . . . 13 4 . 8 13 7 15 Terminals 55 | . 1 . 5 . 3 . . . . . . . . . . 4 14 4 . 4 2 . . . . 3 2 . . 5 2 6 Track 7 | . . . 1 . 1 . . . . . . . . . . . 2 1 . . . . . . . . . . . 1 . 1 Assimilate 3 | . . . 2 . . . . . . . . . . . . 1 . . . . . . . . . . . . . . . . Botnet 24 | . . . 1 . 1 . . . . . . . . . . 2 8 1 . . 1 . . . . 2 1 . . 3 1 3 Detonate 4 | . . . . . . . . . . . . . . . . . . . . 3 . . . . . . . . . . . 1 Disrupt 3 | . . . . . . . . . . . . . . . . . 2 1 . . . . . . . . . . . . . . Operators 14 | . 1 . 1 . 1 . . . . . . . . . . 1 2 1 . 1 1 . . . . 1 1 . . 1 1 1 Fabricators . | . . . . . . . . . . . . . . . . . . . . . . . . . . . . . . . . . Repair Stations . | . . . . . . . . . . . . . . . . . . . . . . . . . . . . . . . . . Recycling Units 4 | . . . . . . . . . . . . . . . . . . . . . . . . . . 1 . . 3 . . . Reject 1 | . . . . . . . . . . . . . . . . . . . . . . . . . . . . . 1 . . . Recyclers 1 | . . . . . . . . . . . . . . . . . . . . . . . . . . . . . 1 . . . Mask 2 | . . . . . . . . . . . . . . . . . . . . . . . . . . 1 . . 1 . . . Scanalyzers 1 | . . . . . . . . . . . . . . . . . . . . . . . . . . 1 . . . . . . Extract 1 | . . . . . . . . . . . . . . . . . . . . . . . . . . 1 . . . . . . Garrison Access . | . . . . . . . . . . . . . . . . . . . . . . . . . . . . . . . . . Data Cores Recovered 3 | . . . . . 1 . . . . . . . . . . . . . . 1 . . . . . . . . . . . 1 Used 1 | . . . . . . . . . . . . . . . . . . . . . . . . . . . . . . . . 1 Hacking Detections 69 | . 1 . 3 2 3 . . . . . . . . . . 8 10 3 . 7 3 . . . . 9 2 . 5 5 5 3 Full Trace Events 4 | . . . . . . . . . . . . . . . . 2 . 1 . . . . . . . . . . . 1 . . Feedback Events . | . . . . . . . . . . . . . . . . . . . . . . . . . . . . . . . . . Feedback Blocked . | . . . . . . . . . . . . . . . . . . . . . . . . . . . . . . . . . Robot Schematics Acquired 5 | . . . . . . . . 5 . . . . . . . . . . . . . . . . . . . . . . . . Robots Built 1 | . . . . . . . . . . . . . . . . . . . . . . . . . . . . . . 1 . . Matter 417 | . . . . . . . . . . . . . . . . . . . . . . . . . . . . . . 417 . . Time 74 | . . . . . . . . . . . . . . . . . . . . . . . . . . . . . . 74 . . Total Robot Build Rating 9 | . . . . . . . . . . . . . . . . . . . . . . . . . . . . . . 9 . . Part Schematics Acquired 18 | . . . . . . . . 7 . . . . . . . 1 . . . . . . . . . 7 . . 2 1 . . Parts Built 4 | . . . . . . . . . . . . . . . . . . . . . . . . . . . 1 . . 1 2 . Matter 1569 | . . . . . . . . . . . . . . . . . . . . . . . . . . . 318 . . 417 834 . Time 343 | . . . . . . . . . . . . . . . . . . . . . . . . . . . 84 . . 74 185 . Total Part Build Rating 33 | . . . . . . . . . . . . . . . . . . . . . . . . . . . 6 . . 9 18 . Parts Repaired . | . . . . . . . . . . . . . . . . . . . . . . . . . . . . . . . . . Time . | . . . . . . . . . . . . . . . . . . . . . . . . . . . . . . . . . Parts Recycled . | . . . . . . . . . . . . . . . . . . . . . . . . . . . . . . . . . Recycled Matter . | . . . . . . . . . . . . . . . . . . . . . . . . . . . . . . . . . Retrieved Matter . | . . . . . . . . . . . . . . . . . . . . . . . . . . . . . . . . . Retrieved Components . | . . . . . . . . . . . . . . . . . . . . . . . . . . . . . . . . . Parts Scanalyzed 7 | . . . . . . . . . . . . . . . . 1 . . . . . . . . . 4 . . 2 . . . Part Schematics Acquired 7 | . . . . . . . . . . . . . . . . 1 . . . . . . . . . 4 . . 2 . . . Parts Damaged . | . . . . . . . . . . . . . . . . . . . . . . . . . . . . . . . . . Bothacking | -11 -10 -10 -9 -8 -7 -7 -7 -7 -6 -6 -6 -6 -6 -6 -5 -5 -5 -5 -5 -5 -4 -4 -4 -4 -3 -3 -3 -3 -2 -2 -1 -1 ------------ Run | Scr Mat Min Mat Mat Fac Low Low Dat Pro Fac Low Low Zio Dee Pro Fac Ext Cet Arc Hub Fac Upp Upp War Pro Res Arm Lab Res Tes Acc Com Used RIF Installer . | . . . . . . . . . . . . . . . . . . . . . . . . . . . . . . . . . Robots Hacked . | . . . . . . . . . . . . . . . . . . . . . . . . . . . . . . . . . Non-combat . | . . . . . . . . . . . . . . . . . . . . . . . . . . . . . . . . . Combat . | . . . . . . . . . . . . . . . . . . . . . . . . . . . . . . . . . Robot Hacks Applied . | . . . . . . . . . . . . . . . . . . . . . . . . . . . . . . . . . Relay Couplers Released 2 | . . . . . . . . . . . . . . . . . . . . . . . . . . . . . 2 . . . Machine Destruction 2 | . . . . . . . . . . . . . . . . . . . . . . . . . . . . . 2 . . . Robots Rewired 16 | . . . . . 1 . . . 2 . . . . . . . 10 . . . . . . 3 . . . . . . . . Allies Hacked 1 | . . . . . . . . . . . . . . . . . . . . . . . . . . . . . . . . 1 Hacks Repelled 1 | . . . . . . . . . . . . . . . . . . . . . . . . . . . . . 1 . . . Allies | -11 -10 -10 -9 -8 -7 -7 -7 -7 -6 -6 -6 -6 -6 -6 -5 -5 -5 -5 -5 -5 -4 -4 -4 -4 -3 -3 -3 -3 -2 -2 -1 -1 -------- Run | Scr Mat Min Mat Mat Fac Low Low Dat Pro Fac Low Low Zio Dee Pro Fac Ext Cet Arc Hub Fac Upp Upp War Pro Res Arm Lab Res Tes Acc Com Total Allies 66 | . . . 2 . 1 . . . 3 . 2 . . 1 . . 21 . . . . . . 3 . . . . . 1 . 32 Largest Group 14 | . . . 2 2 3 . . . 3 . 2 2 . 1 . . 11 11 4 . . . . 3 . . . . . 1 . 14 Highest-Rated Group 778 | . . . 20 20 36 . . . 152 . 62 62 . 118 . . 313 313 92 . . . . 176 . . . . . 55 . 778 Highest-Rated Ally 156 | . . . 10 10 16 . . . 94 . 31 31 . 118 . . 156 37 28 . . . . 60 . . . . . 55 . 75 Total Orders 24 | . . . . 12 7 . . . . . . . . . . . . . . . . . . . . . 5 . . . . . STAY 1 | . . . . . 1 . . . . . . . . . . . . . . . . . . . . . . . . . . . GOTO 10 | . . . . 6 3 . . . . . . . . . . . . . . . . . . . . . 1 . . . . . FOLLOW 9 | . . . . 6 3 . . . . . . . . . . . . . . . . . . . . . . . . . . . EXPLORE 4 | . . . . . . . . . . . . . . . . . . . . . . . . . . . 4 . . . . . Ally Attacks 406 | . . . . . 1 . . . 51 . . . . 100 . . 63 96 2 . . . . 6 . . . . . 1 . 86 Total Damage 15863 | . . . . . . . . . 1283 . . . . 7872 . . 1648 1874 22 . . . . 246 . . . . . . . 2918 Kills 84 | . . . . . . . . . 10 . . . . 35 . . 12 15 1 . . . . 1 . . . . . . . 10 Allies Corrupted . | . . . . . . . . . . . . . . . . . . . . . . . . . . . . . . . . . Allies Melted . | . . . . . . . . . . . . . . . . . . . . . . . . . . . . . . . . . Intel | -11 -10 -10 -9 -8 -7 -7 -7 -7 -6 -6 -6 -6 -6 -6 -5 -5 -5 -5 -5 -5 -4 -4 -4 -4 -3 -3 -3 -3 -2 -2 -1 -1 ------- Run | Scr Mat Min Mat Mat Fac Low Low Dat Pro Fac Low Low Zio Dee Pro Fac Ext Cet Arc Hub Fac Upp Upp War Pro Res Arm Lab Res Tes Acc Com Robot Analysis Total 8 | . . . . . . . . . . . . . . . . 2 4 1 . . . . . . . . 1 . . . . . Derelict Logs Recovered 11 | . . . . . . 3 2 . . . 1 1 2 . . . . . . . . . 2 . . . . . . . . . Drone Launches 3 | . . . . . . . . . . . . . . . . . . . . . . . . . . . 3 . . . . . Drone Recoveries . | . . . . . . . . . . . . . . . . . . . . . . . . . . . . . . . . . Exploration | -11 -10 -10 -9 -8 -7 -7 -7 -7 -6 -6 -6 -6 -6 -6 -5 -5 -5 -5 -5 -5 -4 -4 -4 -4 -3 -3 -3 -3 -2 -2 -1 -1 ------------- Run | Scr Mat Min Mat Mat Fac Low Low Dat Pro Fac Low Low Zio Dee Pro Fac Ext Cet Arc Hub Fac Upp Upp War Pro Res Arm Lab Res Tes Acc Com Turns Passed 16054 | 87 93 251 448 224 833 651 386 78 681 176 435 497 1208 1106 157 308 547 488 223 767 813 254 473 659 319 583 301 108 1197 601 689 413 Spaces Moved 18029 | 28 92 221 291 150 656 588 361 79 543 131 414 403 1197 937 227 400 491 549 246 1007 866 442 709 981 571 716 482 201 1551 811 1029 659 Core 32 | 3 . . . . . . . . . . . 16 . 12 . . . . . . . . 1 . . . . . . . . . Treads . | . . . . . . . . . . . . . . . . . . . . . . . . . . . . . . . . . Legs 16 | 1 . . . . . . . . . . . 1 . 14 . . . . . . . . . . . . . . . . . . Wheels 5457 | 24 92 221 291 150 656 588 361 79 543 131 414 386 1197 324 . . . . . . . . . . . . . . . . . . Hover 12524 | . . . . . . . . . . . . . . 587 227 400 491 549 246 1007 866 442 708 981 571 716 482 201 1551 811 1029 659 Flight . | . . . . . . . . . . . . . . . . . . . . . . . . . . . . . . . . . Fastest Speed 34 | 50 90 80 80 80 100 100 100 100 100 100 100 100 100 44 44 44 46 46 46 46 42 46 46 40 40 40 34 34 40 38 36 36 Average Speed 59 | 86 90 84 80 94 100 100 100 100 100 100 100 103 100 73 44 44 46 46 46 46 49 46 46 42 40 40 35 36 40 39 37 36 Slowest Speed 250 | 120 90 90 80 100 100 100 100 100 100 100 100 200 100 250 44 46 46 46 46 46 121 46 200 97 40 155 110 94 92 92 151 88 Overloaded Moves . | . . . . . . . . . . . . . . . . . . . . . . . . . . . . . . . . . Propulsion Burnouts . | . . . . . . . . . . . . . . . . . . . . . . . . . . . . . . . . . Robots Hopped . | . . . . . . . . . . . . . . . . . . . . . . . . . . . . . . . . . Cave-ins Triggered 5 | . . . . . . . . . . . . . . . . 1 . . . . 3 . . . . . . . 1 . . . Exploration Rate (%) 53 | 2 24 40 28 19 23 68 48 65 59 4 59 70 90 75 42 16 76 95 95 68 34 70 86 94 70 24 56 99 30 56 33 33 Regions Visited 32 Branch Regions 22 Pre-discovered Areas 5 | . . . . . . . 1 1 . . . . 1 . . . . . . . . . . 2 . . . . . . . . Known Exits Taken 28 | . . . . 1 1 1 1 1 1 1 1 1 1 1 1 1 1 1 1 1 1 1 1 1 1 1 1 1 1 1 1 . Unknown Exits Taken 4 | 1 1 1 1 . . . . . . . . . . . . . . . . . . . . . . . . . . . . . Scrap Searched 26 | . . . . . . 2 2 . . . 2 5 3 . 1 . . . . . . 2 4 . 5 . . . . . . . Spaces Dug 457 | . . . 3 . 14 9 . . . 1 1 . . 1 5 10 . . . 171 33 . . 2 93 25 18 . 14 12 32 13 Terrain Destroyed 1214 | . . . 3 27 121 87 7 . 43 1 8 . . 36 6 12 16 50 1 318 77 1 8 5 146 30 55 . 23 19 41 73 Melee 207 | . . . 3 . 14 9 . . . 1 1 . . 1 . 8 . . . 24 33 . . 2 2 25 18 . 14 12 31 9 Projectile 105 | . . . . . . . . . . . . . . . 6 4 16 7 1 8 9 1 8 3 1 5 4 . 9 7 10 6 AOE 902 | . . . . 27 107 78 7 . 43 . 7 . . 35 . . . 43 . 286 35 . . . 143 . 33 . . . . 58 Actions | -11 -10 -10 -9 -8 -7 -7 -7 -7 -6 -6 -6 -6 -6 -6 -5 -5 -5 -5 -5 -5 -4 -4 -4 -4 -3 -3 -3 -3 -2 -2 -1 -1 --------- Run | Scr Mat Min Mat Mat Fac Low Low Dat Pro Fac Low Low Zio Dee Pro Fac Ext Cet Arc Hub Fac Upp Upp War Pro Res Arm Lab Res Tes Acc Com Total 21579 | 57 96 260 406 195 767 628 380 78 628 160 430 452 1208 1286 266 478 745 718 304 1189 1081 478 811 1198 625 906 543 231 2013 1016 1182 764 Wait 1406 | . . 12 31 5 4 11 2 . 31 15 10 12 . 164 1 45 106 83 19 72 26 1 61 86 8 93 1 2 295 148 38 24 Move 17997 | 27 91 220 290 149 655 587 360 78 542 130 413 402 1196 936 226 399 490 548 245 1006 865 441 708 980 570 715 481 200 1550 810 1028 659 Hop . | . . . . . . . . . . . . . . . . . . . . . . . . . . . . . . . . . Pick Up 49 | 3 . 1 2 1 5 1 1 . 2 1 . . . 5 1 . 1 . 1 3 6 . . 1 . 5 . 2 2 2 . 3 Fast Attach 127 | 5 1 . 4 2 6 3 . . 2 . 2 3 3 18 . 1 . . . 1 10 . 3 8 1 6 7 8 15 6 9 3 Attach 12 | 1 . 1 1 . 2 . . . . . . . . 2 1 1 . . . . 2 . . . . . . . 1 . . . Detach 90 | 2 . . . 1 3 1 . . . . . . 1 8 . 1 . 2 . 2 13 . 3 10 2 6 7 8 8 5 6 1 Swap 92 | . . . . 2 8 1 3 . . 4 2 1 4 11 2 1 4 2 2 3 6 . . 4 4 10 1 1 3 1 5 7 Drop 150 | 2 1 1 2 5 12 4 2 . 1 1 1 1 4 24 2 . 1 . . 4 9 . 3 8 . 9 6 7 15 7 11 7 Fire 612 | 17 3 13 49 23 23 7 3 . 25 2 1 10 . 41 7 14 31 42 18 34 58 5 19 16 18 18 9 . 40 15 27 24 Melee 334 | . . . 3 . 19 9 . . . 7 1 . . 2 4 16 . . 12 39 44 2 3 2 4 34 27 3 19 22 50 12 Ram . | . . . . . . . . . . . . . . . . . . . . . . . . . . . . . . . . . Kick . | . . . . . . . . . . . . . . . . . . . . . . . . . . . . . . . . . Crush . | . . . . . . . . . . . . . . . . . . . . . . . . . . . . . . . . . Escape Stasis 10 | . . . . . . . . . . . . . . . . . 2 . . . . . . . . . . . . . 8 . Rewire 128 | . . . . . 30 . . . 6 . . . . . . . 69 . . . . . . 23 . . . . . . . . Trap . | . . . . . . . . . . . . . . . . . . . . . . . . . . . . . . . . . Miscellaneous 572 | . . 12 24 7 . 4 9 . 19 . . 23 . 75 22 . 41 41 7 25 42 29 11 60 18 10 4 . 65 . . 24 Route ------- -11/Scrapyard -10/Materials -10/Mines (discovered 2 exits: *Mat x2) -9/Materials -8/Materials (discovered 5 exits: *Fac x3 / Sto x2) -7/Factory (discovered 3 exits: *Fac / *Low x2) -7/Lower Caves -7/Lower Caves -7/Data Miner -6/Proximity Caves -6/Factory (discovered 3 exits: Fac / *Low x2) -6/Lower Caves -6/Lower Caves (discovered 2 exits: *Fac / *Zio) -6/Zion (discovered 2 exits: *Dee / *Pro) -6/Deep Caves -5/Proximity Caves -5/Factory (discovered 5 exits: Fac x3 / *Ext x2) -5/Extension (discovered 2 exits: *Fac / *Cet) -5/Cetus (discovered 3 exits: *Fac x2 / *Arc) -5/Archives (discovered 3 exits: *Fac / *Hub x2) -5/Hub_04(d) (discovered 2 exits: *Fac x2) -4/Factory (discovered 5 exits: *Res x3 / *Upp x2) -4/Upper Caves -4/Upper Caves -4/Warlord -3/Proximity Caves -3/Research (discovered 3 exits: *Res / *Arm / *Qua) -3/Armory (discovered 3 exits: Res x2 / *Lab) -3/Lab -2/Research (discovered 5 exits: *Acc x3 / *Tes x2) -2/Testing -1/Access -1/Command History --------- Turn | Location | Event 1 | -11/Scrapyard | Upgraded with Propulsion slot (x1) 1 | -11/Scrapyard | Upgraded with Utility slot (x1) 1 | -11/Scrapyard | Upgraded with Weapon slot (x1) 1 | -11/Scrapyard | Discovered new exit (range 1) 88 | -11/Scrapyard | Entered Materials 139 | -10/Materials | Discovered new exit (range 12) 181 | -10/Materials | Entered Mines 205 | -10/Mines | Assembled infested the area 297 | -10/Mines | Received a Rocket Launcher from a helpful Derelict 319 | -10/Mines | Build established: Mutant 363 | -10/Mines | Discovered new exit (range 12) 364 | -10/Mines | Discovered new exit (range 15) 432 | -10/Mines | Entered Materials 434 | -9/Materials | Reached level 2 435 | -9/Materials | Upgraded with Weapon slot (x1) 475 | -9/Materials | Reached level 3 772 | -9/Materials | Reached level 4 787 | -9/Materials | Upgraded with Propulsion slot (x1) 787 | -9/Materials | Upgraded with Utility slot (x1) 833 | -9/Materials | Discovered new exit (range 4) 880 | -9/Materials | Entered another Materials area 880 | -8/Materials | Accompanied by 2 allies 882 | -8/Materials | Reached level 5 924 | -8/Materials | Build established: Scavenger-Assassin 941 | -8/Materials | Upgraded with Propulsion slot (x1) 971 | -8/Materials | Discovered new exit (range 16) 1004 | -8/Materials | Identified exit to Storage 1044 | -8/Materials | Identified exit to Factory 1104 | -8/Materials | Entered Factory 1104 | -7/Factory | Accompanied by 2 allies 1106 | -7/Factory | Reached level 6 1230 | -7/Factory | Build established: Scavenger-Skirmisher 1323 | -7/Factory | Reached level 7 1327 | -7/Factory | Upgraded with Utility slot (x1) 1720 | -7/Factory | Identified exit to Lower Caves 1730 | -7/Factory | Discovered new exit (range 4) 1732 | -7/Factory | Identified exit to Factory 1937 | -7/Factory | Entered Lower Caves 1939 | -7/Lower Caves | Reached level 8 1940 | -7/Lower Caves | Upgraded with Utility slot (x1) 2039 | -7/Lower Caves | Spotted B-75 Beast 2180 | -7/Lower Caves | Learned Factory emergency access door positions 2259 | -7/Lower Caves | Learned location of 1 exit from Proximity Caves 2370 | -7/Lower Caves | Discovered new exit (range 13) 2393 | -7/Lower Caves | Build established: Scavenger-Assassin 2394 | -7/Lower Caves | Acquired the password to a Derelict Tinkerer's latest research 2416 | -7/Lower Caves | Found Prototype Special Weapon 2416 | -7/Lower Caves | Identified Molecular Deconstructor 2428 | -7/Lower Caves | Identified exit to Lower Caves 2437 | -7/Lower Caves | Encountered a Warlord checkpoint 2587 | -7/Lower Caves | Core integrity fell below 50% 2588 | -7/Lower Caves | Entered another Lower Caves area 2590 | -7/Lower Caves | Reached level 9 2653 | -7/Lower Caves | Learned 8 Factory zone layouts 2940 | -7/Lower Caves | Discovered new exit (range 11) 2973 | -7/Lower Caves | Identified exit to Data Miner 2974 | -7/Lower Caves | Entered Data Miner 2974 | -7/Data Miner | Discovered new exit (range 6) 2992 | -7/Data Miner | Met Data Miner 3013 | -7/Data Miner | Learned location of Section 7 (-3) 3013 | -7/Data Miner | Acquired the access code to Warlord's prototype stash 3030 | -7/Data Miner | Received God Mode back door access code from Data Miner 3051 | -7/Data Miner | Identified exit to Proximity Caves 3052 | -7/Data Miner | Entered Proximity Caves 3054 | -6/Proximity Caves | Reached level 10 3086 | -6/Proximity Caves | Escorted by Enhanced Grunt 3111 | -6/Proximity Caves | Attracted the attention of an 0b10 outpost 3124 | -6/Proximity Caves | Reached level 11 3267 | -6/Proximity Caves | Reached level 12 3341 | -6/Proximity Caves | Build established: Skirmisher 3350 | -6/Proximity Caves | Upgraded with Power slot (x1) 3350 | -6/Proximity Caves | Upgraded with Utility slot (x1) 3364 | -6/Proximity Caves | Attracted the attention of an 0b10 checkpoint 3488 | -6/Proximity Caves | Spotted B-75 Beast 3543 | -6/Proximity Caves | Destroyed B-75 Beast 3733 | -6/Proximity Caves | Entered Factory 3734 | -6/Factory | Identified exit to Lower Caves 3734 | -6/Factory | Core integrity fell below 50% 3735 | -6/Factory | Identified exit to Factory 3735 | -6/Factory | Reached level 13 3909 | -6/Factory | Entered Lower Caves 4056 | -6/Lower Caves | A Commander dispatched an escort 4060 | -6/Lower Caves | Learned Extension stockpile data 4072 | -6/Lower Caves | Build established: Assassin 4122 | -6/Lower Caves | Reached level 14 4195 | -6/Lower Caves | Discovered new exit (range 16) 4221 | -6/Lower Caves | Learned Factory trap positions 4241 | -6/Lower Caves | Identified exit to Lower Caves 4297 | -6/Lower Caves | Found Alien Artifact 4297 | -6/Lower Caves | Identified Core Expander 4297 | -6/Lower Caves | Installed Core Expander, added new Propulsion slot 4344 | -6/Lower Caves | Entered another Lower Caves area 4344 | -6/Lower Caves | Accompanied by 2 allies 4345 | -6/Lower Caves | Commander's escort returned to base 4345 | -6/Lower Caves | Commander's escort returned to base 4346 | -6/Lower Caves | Attracted the attention of an 0b10 checkpoint 4378 | -6/Lower Caves | Core integrity fell below 20% 4577 | -6/Lower Caves | Reached level 15 4760 | -6/Lower Caves | Build established: Scavenger-Skirmisher 4760 | -6/Lower Caves | Discovered new exit (range 17) 4840 | -6/Lower Caves | Identified exit to Zion 4841 | -6/Lower Caves | Entered Zion 4889 | -6/Zion | Discovered new exit (range 15) 4904 | -6/Zion | Identified exit to Proximity Caves 4991 | -6/Zion | System corruption cleaned by Quarantine Array 5076 | -6/Zion | Learned Factory emergency access door positions 5109 | -6/Zion | Found Relay Coupler [Programmer] 5157 | -6/Zion | Learned location of 1 exit from Factory 5222 | -6/Zion | Received a hallucinogenic algorithm 5404 | -6/Zion | Discovered new exit (range 18) 5564 | -6/Zion | Acquired unknown access codes intercepted by a Zionite 5647 | -6/Zion | Build established: Derelict-Skirmisher 6025 | -6/Zion | Opened final containment barrier to the Deep Caves 6042 | -6/Zion | Saw the warning signs outside the Deep Caves entrance 6046 | -6/Zion | Identified exit to Deep Caves 6049 | -6/Zion | Entered Deep Caves 6050 | -6/Deep Caves | Met 5H-AD0 6051 | -6/Deep Caves | Reached level 16 6227 | -6/Deep Caves | Z-Facility disabled 6237 | -6/Deep Caves | Attacked by Z-Imprinter 6252 | -6/Deep Caves | Allies destroyed Z-Imprinter 6305 | -6/Deep Caves | Upgraded with Utility slot (x1) 6312 | -6/Deep Caves | Found Prototype Protection 6312 | -6/Deep Caves | Identified Zio. Weapon Casing 6377 | -6/Deep Caves | Found Zio. Weapon Casing 6624 | -6/Deep Caves | Found Zio. Weapon Casing 6680 | -6/Deep Caves | Discovered new exit (range 18) 6727 | -6/Deep Caves | Spotted as-43171 6732 | -6/Deep Caves | Exposed GOLEM chamber 6760 | -6/Deep Caves | Destroyed as-43171 6763 | -6/Deep Caves | Reached level 17 6770 | -6/Deep Caves | Triggered Deep Caves wall 6774 | -6/Deep Caves | Found GOLEM Unit 6783 | -6/Deep Caves | Reached level 18 6796 | -6/Deep Caves | Build established: Scavenger-Scout 6805 | -6/Deep Caves | Spotted AS-96615 6822 | -6/Deep Caves | Destroyed 29 combat bots 6828 | -6/Deep Caves | Triggered Deep Caves wall 6832 | -6/Deep Caves | Lost 3 parts (1n2u) 6842 | -6/Deep Caves | Found GOLEM Unit 6930 | -6/Deep Caves | Found Zio. Weapon Casing 6985 | -6/Deep Caves | Upgraded with Utility slot (x1) 7023 | -6/Deep Caves | Found Surveybot 24 Chip 7029 | -6/Deep Caves | Found Surveybot 24 Scanner 7053 | -6/Deep Caves | Identified exit to Proximity Caves 7155 | -6/Deep Caves | Entered Proximity Caves 7157 | -5/Proximity Caves | Reached level 19 7289 | -5/Proximity Caves | Spotted B-75 Beast 7312 | -5/Proximity Caves | Entered Factory 7313 | -5/Factory | Identified exit to Factory 7313 | -5/Factory | Identified exit to Extension 7314 | -5/Factory | Reached level 20 7315 | -5/Factory | Loaded intel: 95 trap records 7316 | -5/Factory | Upgraded with Utility slot (x1) 7383 | -5/Factory | Build established: Scavenger-Golem 7388 | -5/Factory | Garrison activated, responded to threat 7506 | -5/Factory | Discovered exit to Factory (range 22) 7551 | -5/Factory | Crushed by falling debris 7620 | -5/Factory | Entered Extension 7622 | -5/Extension | Reached level 21 7627 | -5/Extension | Disrupted transfer network 7643 | -5/Extension | Rescued a captive Derelict 7643 | -5/Extension | Rescued a captive Derelict 7658 | -5/Extension | Identified exit to Cetus 7686 | -5/Extension | Rescued a captive Derelict 7773 | -5/Extension | Build established: Hauler-Golem 7884 | -5/Extension | Rescued A7 7894 | -5/Extension | Spotted B-75 Beast 7899 | -5/Extension | Reached level 22 7920 | -5/Extension | First assault squad dispatched 7922 | -5/Extension | Spotted B-75 Beast 7928 | -5/Extension | Extracted ID and sensor layout for unrecognized location from A7's data core 7937 | -5/Extension | Rescued a captive Derelict 7939 | -5/Extension | Rescued a captive Derelict 7947 | -5/Extension | Incoming assault squad redirected 7949 | -5/Extension | Rescued a captive Derelict 7955 | -5/Extension | Rescued a captive Derelict 7955 | -5/Extension | Central database locked down 7956 | -5/Extension | Rescued a captive Derelict 7966 | -5/Extension | Rescued a captive Derelict 8081 | -5/Extension | Rescued a captive Derelict 8118 | -5/Extension | Incoming assault squad redirected 8129 | -5/Extension | Discovered exit to Factory (range 10) 8167 | -5/Extension | Entered Cetus 8167 | -5/Cetus | Accompanied by 11 allies 8169 | -5/Cetus | Upgraded with Utility slot (x1) 8173 | -5/Cetus | Spotted Cetus Guard 8173 | -5/Cetus | Spotted Cetus Guard 8177 | -5/Cetus | Spotted Cetus Guard 8177 | -5/Cetus | Spotted Cetus Guard 8183 | -5/Cetus | Destroyed Cetus Guard 8195 | -5/Cetus | Allies destroyed Cetus Guard 8200 | -5/Cetus | Destroyed Cetus Guard 8205 | -5/Cetus | Allies destroyed Cetus Guard 8248 | -5/Cetus | Central database locked down 8277 | -5/Cetus | Reached level 23 8323 | -5/Cetus | Discovered new exit (range 24) 8337 | -5/Cetus | Spotted Cetus Guard 8337 | -5/Cetus | Spotted Cetus Guard 8347 | -5/Cetus | Spotted Cetus Guard 8349 | -5/Cetus | Spotted Cetus Guard 8361 | -5/Cetus | Allies destroyed Cetus Guard 8371 | -5/Cetus | Destroyed Cetus Guard 8373 | -5/Cetus | Destroyed Cetus Guard 8374 | -5/Cetus | Destroyed Cetus Guard 8376 | -5/Cetus | Discovered exit to Factory (range 23) 8446 | -5/Cetus | Met Revision 17 8490 | -5/Cetus | Discovered exit to Factory (range 23) 8546 | -5/Cetus | Identified exit to Archives 8556 | -5/Cetus | Destroyed 8 combat bots 8655 | -5/Cetus | Entered Archives 8655 | -5/Archives | Accompanied by 4 allies 8753 | -5/Archives | Discovered new exit (range 23) 8755 | -5/Archives | Unable to access archive contents 8757 | -5/Archives | Discovered new exit (range 23) 8761 | -5/Archives | Unable to access archive contents 8762 | -5/Archives | Discovered exit to Factory (range 23) 8766 | -5/Archives | Unable to access archive contents 8822 | -5/Archives | Unable to access archive contents 8868 | -5/Archives | Unable to access archive contents 8877 | -5/Archives | Identified exit to Hub_04(d) 8878 | -5/Archives | Entered Hub_04(d) 9106 | -5/Hub_04(d) | Reached level 24 9388 | -5/Hub_04(d) | Discovered exit to Factory (range 14) 9401 | -5/Hub_04(d) | Garrison activated, responded to threat 9474 | -5/Hub_04(d) | Discovered exit to Factory (range 3) 9517 | -5/Hub_04(d) | Spotted B-75 Beast 9537 | -5/Hub_04(d) | Network Hub disabled 9544 | -5/Hub_04(d) | Network Hub disabled 9645 | -5/Hub_04(d) | Entered Factory 9814 | -4/Factory | Reached level 25 9881 | -4/Factory | Upgraded with Utility slot (x1) 10010 | -4/Factory | Crushed by falling debris 10041 | -4/Factory | Lost 3 parts (3n) 10043 | -4/Factory | Core integrity fell below 50% 10047 | -4/Factory | Discovered new exit (range 18) 10058 | -4/Factory | Identified exit to Research 10136 | -4/Factory | Discovered exit to Research (range 20) 10165 | -4/Factory | Identified exit to Upper Caves 10180 | -4/Factory | Crushed by falling debris 10196 | -4/Factory | Core integrity fell below 20% 10228 | -4/Factory | System corruption reached 10% 10332 | -4/Factory | Discovered exit to Research (range 17) 10361 | -4/Factory | Crushed by falling debris 10395 | -4/Factory | First assault squad dispatched 10423 | -4/Factory | Incoming assault squad redirected 10456 | -4/Factory | Incoming assault squad redirected 10458 | -4/Factory | Entered Upper Caves 10521 | -4/Upper Caves | Encountered a Warlord checkpoint 10587 | -4/Upper Caves | Attracted the attention of an 0b10 checkpoint 10645 | -4/Upper Caves | Discovered new exit (range 10) 10658 | -4/Upper Caves | Identified exit to Upper Caves 10712 | -4/Upper Caves | Entered another Upper Caves area 10743 | -4/Upper Caves | Learned 4 Research zone layouts 10803 | -4/Upper Caves | Attracted the attention of an 0b10 checkpoint 10830 | -4/Upper Caves | Learned Research trap positions 10855 | -4/Upper Caves | Discovered new exit (range 9) 10859 | -4/Upper Caves | Identified exit to Warlord 11185 | -4/Upper Caves | Entered Warlord 11187 | -4/Warlord | Reached level 26 11201 | -4/Warlord | System corruption cleaned by Quarantine Array 11244 | -4/Warlord | Learned location of Quarantine (-3) 11245 | -4/Warlord | Learned 4 Command zone layouts 11330 | -4/Warlord | Met Warlord 11336 | -4/Warlord | Opened Warlord's prototype stash 11339 | -4/Warlord | Found Prototype Processor 11339 | -4/Warlord | Identified Exp. Target Analyzer 11354 | -4/Warlord | Warlord's base attacked by MAIN.C 11359 | -4/Warlord | Found Prototype Processor 11359 | -4/Warlord | Identified Exp. Targeting Computer 11438 | -4/Warlord | Met EX-DEC 11578 | -4/Warlord | Warlord forces counterattacked 11793 | -4/Warlord | Opened side exit 11798 | -4/Warlord | Spotted Striker 11825 | -4/Warlord | Spotted B-90 Cyclops 11825 | -4/Warlord | Spotted B-86 Titan 11830 | -4/Warlord | Discovered new exit (range 9) 11834 | -4/Warlord | Identified exit to Proximity Caves 11844 | -4/Warlord | Entered Proximity Caves 11905 | -3/Proximity Caves | Spotted B-86 Titan 12044 | -3/Proximity Caves | Reached level 27 12057 | -3/Proximity Caves | Discovered exit to Research (range 16) 12093 | -3/Proximity Caves | Upgraded with Utility slot (x1) 12163 | -3/Proximity Caves | Entered Research 12164 | -3/Research | Identified exit to Armory 12166 | -3/Research | Loaded intel: 75 trap records 12329 | -3/Research | Discovered new exit (range 21) 12331 | -3/Research | Discovered new exit (range 21) 12352 | -3/Research | Identified exit to Research 12361 | -3/Research | Identified exit to Quarantine 12363 | -3/Research | Revision forces began assault on 0b10 12439 | -3/Research | Reached level 28 12439 | -3/Research | Met up with Revision 17++ 12630 | -3/Research | Build established: Hauler-Ninja 12737 | -3/Research | Found Prototype Launcher 12737 | -3/Research | Identified Adv. Micro-nuke Launcher 12746 | -3/Research | Entered Armory 12956 | -3/Armory | Energy Cycler disabled 12967 | -3/Armory | Discovered exit to Research (range 15) 12990 | -3/Armory | Spotted B-86 Titan 13017 | -3/Armory | Fabricated Plasma Sword? 13023 | -3/Armory | Discovered exit to Research (range 23) 13036 | -3/Armory | Discovered new exit (range 22) 13046 | -3/Armory | Identified exit to Lab 13047 | -3/Armory | Entered Lab 13047 | -3/Lab | Discovered exit to Research (range 9) 13049 | -3/Lab | Reached level 29 13052 | -3/Lab | Hidden lab's door opened automatically 13052 | -3/Lab | Sensor layout match revealed 13053 | -3/Lab | Gained access to the hidden lab's interior 13062 | -3/Lab | Found Prototype Special Weapon 13062 | -3/Lab | Identified Gui. Remote Datajack 13071 | -3/Lab | Unable to decrypt terminal 13076 | -3/Lab | Found Prototype Protection 13076 | -3/Lab | Identified Exp. Powered Armor 13081 | -3/Lab | Found Prototype Hackware 13081 | -3/Lab | Identified Quantum Router 13092 | -3/Lab | Found Core Expander 13092 | -3/Lab | Installed Core Expander, added new Utility slot 13101 | -3/Lab | Found Alien Artifact 13101 | -3/Lab | Identified Integrated Dissipator 13101 | -3/Lab | Installed Integrated Dissipator, increased core heat dissipation (+2%) 13123 | -3/Lab | Found Alien Artifact 13146 | -3/Lab | Unable to decrypt terminal 13148 | -3/Lab | Found Alien Artifact 13152 | -3/Lab | Unable to decrypt terminal 13155 | -3/Lab | Entered Research 13155 | -2/Research | Warlord forces began assault on 0b10 13157 | -2/Research | Reached level 30 13160 | -2/Research | Identified exit to Testing 13265 | -2/Research | Research machine network offline 13281 | -2/Research | Discovered new exit (range 13) 13285 | -2/Research | Found Prototype Device 13285 | -2/Research | Identified Exp. Actuator Array 13298 | -2/Research | Identified exit to Access 13346 | -2/Research | Build established: Hacker-Ninja 13431 | -2/Research | Found Prototype Processor 13431 | -2/Research | Identified Exp. Melee Analysis Suite 13466 | -2/Research | Reached level 31 13466 | -2/Research | Met up with Warlord 13468 | -2/Research | Upgraded with Utility slot (x1) 13479 | -2/Research | Spotted Striker 13481 | -2/Research | Destroyed Striker 13488 | -2/Research | Spotted Striker 13519 | -2/Research | Crushed by falling debris 13541 | -2/Research | Spotted Striker 13542 | -2/Research | Spotted Executioner 13579 | -2/Research | Borebot progress halted 13675 | -2/Research | Spotted Striker 13697 | -2/Research | Borebot progress halted 13732 | -2/Research | Borebot progress halted 13847 | -2/Research | Borebot progress halted 13884 | -2/Research | Discovered exit to Access (range 13) 13896 | -2/Research | Discovered exit to Access (range 19) 14041 | -2/Research | Spotted Striker 14058 | -2/Research | Destroyed Striker 14076 | -2/Research | Found Prototype Device 14076 | -2/Research | Identified Adv. Kinecellerator 14097 | -2/Research | Spotted Striker 14260 | -2/Research | Spotted Striker 14275 | -2/Research | Spotted Striker 14276 | -2/Research | Spotted Striker 14342 | -2/Research | Spotted Executioner 14343 | -2/Research | Spotted Executioner 14352 | -2/Research | Entered Testing 14358 | -2/Testing | Found Prototype Device 14358 | -2/Testing | Identified EM Disruption Field 14416 | -2/Testing | Discovered exit to Access (range 5) 14454 | -2/Testing | Fabricated C-65 Expert? 14456 | -2/Testing | Found Prototype Processor 14456 | -2/Testing | Identified Exp. Signal Interpreter 14535 | -2/Testing | Found Prototype Device 14535 | -2/Testing | Identified AEGIS Remote Shield 14608 | -2/Testing | Reached level 32 14779 | -2/Testing | Found Portable AFG 14836 | -2/Testing | Fabricated Exp. Gyrokinetic Inverter (x1) 14865 | -2/Testing | Incoming investigation squad redirected 14953 | -2/Testing | Entered Access 14955 | -1/Access | Reached level 33 14972 | -1/Access | Garrison activated, responded to threat 14998 | -1/Access | Identified exit to Command 15176 | -1/Access | Incoming investigation squad redirected 15211 | -1/Access | Fabricated Exp. Gyrokinetic Inverter? 15351 | -1/Access | Spotted B-99 Colossus 15357 | -1/Access | Fabricated Exp. Gyrokinetic Inverter (x1) 15575 | -1/Access | Found Exp. Transmission Jammer 15599 | -1/Access | Central database locked down 15642 | -1/Access | Entered Command 15644 | -1/Command | Reached level 34 15677 | -1/Command | Disengaged cave seal 15677 | -1/Command | Derelicts emerged from the dark tunnel 15699 | -1/Command | Discovered new exit (range 19) 15781 | -1/Command | Spotted Striker 15803 | -1/Command | Allies destroyed Striker 15804 | -1/Command | Spotted Alpha 7 15804 | -1/Command | Spotted Executioner 15804 | -1/Command | Spotted Executioner 15867 | -1/Command | Destroyed 7 combat bots 15896 | -1/Command | Identified Transdimensional Reconstructor 15896 | -1/Command | Failed to warp due to unstable space 15902 | -1/Command | Core integrity fell below 50% 15932 | -1/Command | Spotted B-99 Colossus 15950 | -1/Command | Core integrity fell below 20% 15969 | -1/Command | P-80 Master assimilated allied LP-II0(d) 15969 | -1/Command | Reached level 35 15988 | -1/Command | Identified Core Reset Matrix 15988 | -1/Command | Used Core Reset Matrix 15995 | -1/Command | Spotted M Guard 15995 | -1/Command | Spotted M Guard 15995 | -1/Command | Spotted Combat Programmer 15995 | -1/Command | Spotted Combat Programmer 16001 | -1/Command | Emitted hypermatrix ping 16006 | -1/Command | Assembled emerged from beneath the floor 16017 | -1/Command | Met MAIN.C 16020 | -1/Command | 0b10 Conduit disabled 16038 | -1/Command | System corruption reached 10% 16055 | -1/Command | Destroyed by Combat Programmer with EMDS Last Messages --------------- You can still make a valuable contribution to your creator by offering up the wealth of secrets your systems must hold by now. So if you wouldn't mind, it's time to surrender. [Achievement: Meet Your Maker] 16020_ 0b10 Conduit disabled. 16025_ System corrupted: Neutron Missile Launcher targeting data glitched. 16026_ P-80 Master resets P-80 Master, system corruption cleaned. 16030_ NDF1UKRHK I>X RD,NAV0EXAM=UYKN 16030_ Combat Programmer resets P-80 Master, system corruption cleaned. 16032_ System corrupted: Asb. Focal Cannon targeting data glitched. 16033_ P-80 Master resets P-80 Master, system corruption cleaned. 16035_ System corrupted: Asb. Focal Cannon failed to cycle. 16035_ P-80 Master resets P-80 Master, system corruption cleaned. 16039_ Discarded Asb. Nanovents. 16044_ System corrupted: Neutron Missile Launcher targeting data glitched. 16047_ P-80 Master resets P-80 Master, system corruption cleaned. 16054_ P-80 Master destroyed. 16054_ EMDS Slug penetrates MAIN.C. 16055_ Penetrated by EMDS Slug. [Achievement: 50k Club] Map ----- +----------------------------------------------------+ | ????????????????????????#########?##?????#?#??#??? | | ?????????????????????####?##?#############??#????? | | ???????????????????##?######?############?#?#?#??? | | ?????????????????###############?#####?#####??#??? | | ???????????????#########?########?##########?#?#?? | | ????????????#??#########??#######################? | | ????????????#?###########?#####################?#? | | ???????????#?##?###?#####?##################?####? | | ????????????#################?############?####### | | ?????????#?#####?###?######??###################?# | | ??????????######################################?# | | ??????#???########################?############### | | ?????#??########################################## | | ?????????########?#############?#######?########## | | ?????????##?#?#######?############################ | | ?????#??##################?##########?############ | | ????????#?######################?################# | | ????#??#?#""""""" """" #########?######### | | ????#???##"? "" ################### | | ???????###""""" "" ################### | | ???????###"""""""""" pp | | ?????#?###" " p/ | | ???? ??###?"? "" !%pp | | ??????####"" "" pp################### | | ???? ####? " " pp ###########?####### | | ? ? ??### MMM @ #######?########### | | ??????#?## " MMM #########?######### | | ???????##?""" MMM "##?################ | | ???????##?"" ""################### | | ???????#?# """################### | | ???? ??### " #########?######### | | ????????## " ####?############## | | ?????? """ "" " #################?# | | ??? ????" """" ##############?#### | | ????? ???" " #######?#####?##### | | ??????????? " ############?###### | | ?????????? """"""""################### | | ??????????? " " ################### | | ?????????###?####################################? | | ?????????????##############?####################?? | | ????????#?????########################?##########? | | ????????###?#?####?####?######?###############?### | | ??????????#?#???#############################????? | | ???????????#??????########################?##?##?? | | ?????????????#?????###??#####?#############???#??# | | ????????????##???????###################???##??##? | | ?????????????????#???#??##??###?#####?????????#?#? | | ??????????????????????????#???#??##???#????#???#?? | | ????????????????????#???#?????#?????????????#?#??? | | ?????????????????????????????????????????#?????#?? | +----------------------------------------------------+ Best States ------------- Heat Dissipation 100 Coolant Potential 120 Energy Generation 62 Energy Capacity 1900 Matter Stores 300 Matter Capacity 600 Sight Range 24 Robot Scan Range 36 Terrain Scan Range 24 Terrain Scan Density 2510 Cloak Strength 4 Power Amplification 30 Additional Mass Support 20 Armor Coverage 500 Resistance: KI 15 Resistance: TH 15 Resistance: EX 15 Resistance: EM 50 Resistance: I 15 Resistance: S 15 Resistance: P 15 Core Shielding 30 Weapon Shielding 100 Phase Shifting 8 Evasion (%) 80 Targeting Accuracy 20 Target Analysis 12 Core Analysis 10 Recoil Reduction 2 Particle Charging 25 Offensive Hacking 10 Defensive Hacking 30 Item Schematics ----------------- None Robot Schematics ------------------ None Fabricated ------------ Plasma Sword | x1 | -3/Armory C-65 Expert | x1 | -2/Testing | Preloaded Exp. Gyrokinetic Inverter | x1 | -2/Testing Exp. Gyrokinetic Inverter | x1 | -1/Access Exp. Gyrokinetic Inverter | x1 | -1/Access Alien Tech Used ----------------- Core Expander Integrated Dissipator Transdimensional Reconstructor Core Reset Matrix Achievements -------------- 50k Club Meet Your Maker Revolutionary Research Challenges ------------ None RPGLIKE | -11 -10 -10 -9 -8 -7 -7 -7 -7 -6 -6 -6 -6 -6 -6 -5 -5 -5 -5 -5 -5 -4 -4 -4 -4 -3 -3 -3 -3 -2 -2 -1 -1 --------- Run | Scr Mat Min Mat Mat Fac Low Low Dat Pro Fac Low Low Zio Dee Pro Fac Ext Cet Arc Hub Fac Upp Upp War Pro Res Arm Lab Res Tes Acc Com Levels Raised 34 | . . . 3 1 2 1 1 . 3 1 1 1 . 3 1 1 2 1 . 1 1 . . 1 1 1 . 1 2 1 1 2 XP Earned 55035 | 3000 80 1200 3280 2220 3545 1300 1050 650 3911 1650 1020 1100 650 5192 1250 1702 2459 1595 301 798 1775 257 484 499 1199 1811 663 1387 2637 1024 1863 3483 XP Spent 53830 | 3000 . . 4455 1100 2810 1970 1580 . 4275 840 690 . . 7490 . 3000 200 3400 . . 3600 . . . 3500 1395 . . 4525 . . 6000 Upgrades 105 | 11 . . 15 1 4 7 4 . 7 6 3 . . 8 . 3 1 2 . . 2 . . . 1 6 . . 4 . . 20 Power Slot 1 | . . . . . . . . . 1 . . . . . . . . . . . . . . . . . . . . . . . Propulsion Slot 3 | 1 . . 1 1 . . . . . . . . . . . . . . . . . . . . . . . . . . . . Utility Slot 12 | 1 . . 1 . 1 1 . . 1 . . . . 2 . 1 . 1 . . 1 . . . 1 . . . 1 . . . Weapon Slot 2 | 1 . . 1 . . . . . . . . . . . . . . . . . . . . . . . . . . . . . Core Integrity 38 | . . . 5 . . 3 1 . 1 4 2 . . 1 . . . . . . . . . . . 1 . . . . . 20 Heat Dissipation 5 | 1 . . 1 . . 1 . . 1 . . . . 1 . . . . . . . . . . . . . . . . . . Energy Generation 1 | . . . . . . . . . . . . . . . . . . . . . . . . . . 1 . . . . . . Energy Storage 4 | . . . . . . . . . 1 . . . . 1 . . . . . . . . . . . 2 . . . . . . Mass Support 3 | 1 . . 1 . . . . . . . . . . . . . . . . . . . . . . . . . 1 . . . Inventory Capacity 7 | 2 . . 1 . 1 . 1 . 1 . . . . 1 . . . . . . . . . . . . . . . . . . Sight Range 1 | 1 . . . . . . . . . . . . . . . . . . . . . . . . . . . . . . . . Sensor Range 8 | 1 . . . . . 1 2 . . 1 . . . . . . . . . . . . . . . 2 . . 1 . . . Terrain Scan Density 5 | 1 . . 2 . 1 . . . . 1 . . . . . . . . . . . . . . . . . . . . . . Ranged Accuracy 3 | 1 . . 1 . 1 . . . . . . . . . . . . . . . . . . . . . . . . . . . Hack Attack % 2 | . . . . . . . . . . . . . . . . 1 . . . . 1 . . . . . . . . . . . Hack Defense % 1 | . . . . . . . . . . . . . . . . 1 . . . . . . . . . . . . . . . . KI Resistance % 2 | . . . 1 . . . . . . . 1 . . . . . . . . . . . . . . . . . . . . . TH Resistance % 3 | . . . . . . 1 . . . . . . . 2 . . . . . . . . . . . . . . . . . . EX Resistance % 2 | . . . . . . . . . 1 . . . . . . . . . . . . . . . . . . . 1 . . . TH Damage % 2 | . . . . . . . . . . . . . . . . . 1 1 . . . . . . . . . . . . . . Protomatter Created 3890 | . . 84 164 72 81 53 59 . 61 . . 181 . 325 157 . 397 94 . 415 605 222 83 52 233 . 25 . 259 64 . 204 Integrity Restored 12190 | . . 192 461 132 . 84 177 . 411 . . 534 . 1677 463 . 769 892 153 600 934 666 249 1286 374 184 72 . 1355 . . 525 Core 10273 | . . 141 409 132 . 84 177 . 411 . . 534 . 1677 346 . 578 538 153 600 920 666 249 640 293 118 72 . 1010 . . 525 Parts 1917 | . . 51 52 . . . . . . . . . . . 117 . 191 354 . . 14 . . 646 81 66 . . 345 . . . Protomatter Decayed 11620 | . . 14 7 . . . 54 . 312 . . . . 551 79 . 506 183 152 202 293 . . 1117 52 1884 1 . 5067 216 . 930 Game ------ Seed HeavyRagnarokApparatus Manual? 0 Play Time 08:38:07 Cumulative 294.0 hours Start 2019.12.17 @ 21:40:58 End 2019.12.19 @ 03:16:14 Sessions 9 Manual Loads 0 Difficulty Rogue Special Mode Winter2019/RPGLIKE Game No. 120 Rogue 120 Adventurer 0 Explorer 0 Win Type - Total 8 Types 7/0/0/1/0/0/0 Lore% 79 Gallery% 81 Achievement% 61 Wizard Run 0 Options --------- ASCII 0 Keyboard 0 Movement Numpad Keybinds 0 Fullscreen 0 Font 14/Dina Map View 76x50 Tactical HUD 1 Map Filters NONE Filters NONE Steam 1 RUN: 498d3cbf-d0a7-4df7-8317-1cb8dccd7826